Cogmind - Beta 10.2 @@@ ROGUE MODE // 2021.04.19 @ 23:11:46 // Halloween2020/ForbiddenLore Player: Valguris Result: Escaped! Performance ------------- Evolutions (9) 4500 Regions Visited (41) 8200 Robots Destroyed (541) 2705 Value Destroyed (33331) 33331 Prototype IDs (117) 2340 Alien Tech Used (0) 0 Bonus (29800) 29800 TOTAL SCORE: 80876 Bonus ------- High Alert Combat Kills 2147 Follower Combat Kills 9174 Entered Garrisons 1400 Used RIF Installer 3500 Network Hubs Disabled 400 Aligned with FarCom 300 Triggered Deep Caves Wall 500 Exposed GOLEM Chamber 500 Built Enhanced Grunts 300 A7 Reached Mainframe 300 Met R17 at Cetus 500 Met R17 at Research 2000 Destroyed MAIN.C Guards 500 Met MAIN.C 5000 Hacked MAIN.C 300 Destroyed MAIN.C Shell 5000 Win 3000 Friendly Fire -5021 Cogmind --------- Core Integrity 150/1600 Matter 93/300 Energy 90/100 System Corruption 48% Temperature Cool (0) Movement Core (50) Location To Epsilon Eridani Parts ------- > --- POWER (4) -------- (None) > --- PROPULSION (3) --- Experimental Biometal Leg > --- UTILITY (14) ----- Spectral Analyzer Experimental Core Analyzer Experimental Armor Integrity Analyzer > --- WEAPON (4) ------- (None) > --- INVENTORY (4) ---- EMDS Heavy Hardcell Cannon Peak State ------------ > --- POWER ------------ Quantum Reactor Improved Quantum Reactor Vortex Chain Reactor > --- PROPULSION ------- Biometal Medium Treads Advanced Heavy Siege Treads > --- UTILITY ---------- Experimental Cooling System Experimental Coolant Injector High-capacity Storage Unit High-capacity Storage Unit High-capacity Storage Unit Spectral Analyzer Experimental Targeting Computer Experimental Core Analyzer Experimental Armor Integrity Analyzer Advanced Particle Accelerator Quantum Capacitor Centrium Heavy Armor Plating > --- WEAPON ----------- Nova Cannon Improved Potential Cannon Graviton Cannon > --- INVENTORY -------- Light Quantum Reactor Zero-point Reactor Experimental Biometal Medium Treads Experimental Biometal Leg Centrium Wheel Centrium Wheel Advanced Cooling System Experimental Cooling System Experimental Coolant Injector Experimental Energy Well Compact Matter Pod Matter Filter Experimental Utility Shielding Powered Armor Advanced Force Field Antimissile System Gamma Rifle Gamma Rifle EMDS Improved Potential Cannon Heavy Hardcell Cannon Point Singularity Launcher [Rating: 227] Favorites ----------- Power Antimatter Reactor Engine F-cell Engine Power Core Nuclear Core Reactor Antimatter Reactor Propulsion Armored Wheel Treads Armored Treads Leg Assembled Alloy Leg Wheel Armored Wheel Utility High-capacity Storage Unit Device Long-range Sensor Array Storage High-capacity Storage Unit Processor Improved Signal Interpreter Hackware Relay Coupler [Grunt] Protection Improved Medium Armor Plating Weapon Phase Cannon Energy Gun Beam Rifle Energy Cannon Phase Cannon Ballistic Gun Assault Rifle Ballistic Cannon Hardcell Cannon Launcher Rocket Launcher Special Weapon Improved Remote Datajack Slashing Weapon Master Tearclaws Special Melee Weapon Advanced Datajack Build | -11 -10 -10 -10 -9 -8 -8 -8 -8 -7 -7 -7 -7 -7 -7 -7 -6 -6 -6 -6 -6 -6 -6 -5 -5 -5 -5 -5 -5 -5 -5 -4 -4 -4 -4 -3 -3 -2 -2 -2 -1 -1 ------- Run | Scr Mat Min Exi Min Mat Gar Mat Gar Fac Was Fac Low Low Zio Dee Pro Fac Was Fac Gar Fac Gar Fac Was Fac Ext Cet Arc Hub Gar Fac Was Fac Gar Res Tes Res Qua Gar Acc Com Slots Evolved 18 | . . . . . 4 . . . 2 . . . . . . . 2 . . . . . 2 . . . . . . . 2 . . . 2 . 2 . . 2 . Power 3 | . . . . . . . . . 1 . . . . . . . . . . . . . . . . . . . . . . . . . . . 1 . . 1 . Propulsion 1 | . . . . . 1 . . . . . . . . . . . . . . . . . . . . . . . . . . . . . . . . . . . . Utility 12 | . . . . . 3 . . . 1 . . . . . . . 2 . . . . . 2 . . . . . . . 2 . . . 2 . . . . . . Weapon 2 | . . . . . . . . . . . . . . . . . . . . . . . . . . . . . . . . . . . . . 1 . . 1 . Parts Attached 773 | 6 4 3 2 5 14 8 5 6 40 10 14 35 14 46 12 4 30 7 34 27 6 16 10 8 . 16 8 2 65 30 46 10 6 18 17 58 24 13 13 24 57 Power 46 | 1 . . . 1 . 2 2 . 2 2 . . . 4 1 . . . . . . 2 . 2 . . 3 . 5 . 1 . 1 . . 2 3 1 1 3 7 Engine 7 | 1 . . . . . 1 1 . 1 . . . . 2 . . . . . . . 1 . . . . . . . . . . . . . . . . . . . Core 4 | . . . . 1 . 1 1 . 1 . . . . . . . . . . . . . . . . . . . . . . . . . . . . . . . . Reactor 35 | . . . . . . . . . . 2 . . . 2 1 . . . . . . 1 . 2 . . 3 . 5 . 1 . 1 . . 2 3 1 1 3 7 Propulsion 73 | 2 . 2 1 . 4 . . . 5 . . . . 7 2 3 8 1 4 5 . . . 1 . 3 . . 2 1 3 1 . 1 3 6 1 1 . 3 3 Treads 42 | 2 . 1 1 . 4 . . . 3 . . . . 4 . 2 8 1 2 . . . . . . . . . . 1 1 1 . . 3 4 1 1 . . 2 Leg 1 | . . . . . . . . . . . . . . . . . . . . . . . . . . . . . . . . . . . . . . . . . 1 Wheel 30 | . . 1 . . . . . . 2 . . . . 3 2 1 . . 2 5 . . . 1 . 3 . . 2 . 2 . . 1 . 2 . . . 3 . Hover . | . . . . . . . . . . . . . . . . . . . . . . . . . . . . . . . . . . . . . . . . . . Flight . | . . . . . . . . . . . . . . . . . . . . . . . . . . . . . . . . . . . . . . . . . . Utility 345 | 1 2 . 1 4 8 . 2 . 13 3 5 15 5 17 1 1 19 5 21 6 4 10 7 5 . 4 3 1 22 9 17 4 4 12 12 23 17 8 8 12 34 Device 206 | . . . . 2 5 . 2 . 10 . 4 10 3 13 1 . 10 3 19 2 2 1 2 2 . . 1 1 16 5 7 2 2 3 6 20 16 6 3 7 20 Storage 19 | 1 2 . 1 2 1 . . . . . . 1 . 2 . 1 3 . . . . . . . . . . . . . 1 . . . . . . 1 1 1 1 Processor 10 | . . . . . . . . . 1 . . . . . . . 1 . . . 1 . . . . . . . 1 . . . . . 1 . . . . . 5 Hackware 43 | . . . . . . . . . . 1 . . 2 . . . 1 1 2 2 1 6 4 1 . 1 . . 2 3 3 1 1 6 2 1 . . . 2 . Protection 67 | . . . . . 2 . . . 2 2 1 4 . 2 . . 4 1 . 2 . 3 1 2 . 3 2 . 3 1 6 1 1 3 3 2 1 1 4 2 8 Artifact . | . . . . . . . . . . . . . . . . . . . . . . . . . . . . . . . . . . . . . . . . . . Weapon 309 | 2 2 1 . . 2 6 1 6 20 5 9 20 9 18 8 . 3 1 9 16 2 4 3 . . 9 2 1 36 20 25 5 1 5 2 27 3 3 4 6 13 Energy Gun 26 | 1 1 . . . . . . 2 . . 1 . . 2 2 . . . . . . . . . . . . . 8 3 . 2 . . . 1 . 1 1 1 . Energy Cannon 147 | . . . . . 1 4 1 3 20 3 6 8 5 7 . . 1 . 5 7 1 1 2 . . 4 1 1 14 6 10 1 1 3 1 18 2 . 3 1 6 Ballistic Gun 20 | 1 . 1 . . 1 . . 1 . . . 7 1 1 3 . . . . . . . . . . . . . . . 3 . . . . . . . . . 1 Ballistic Cannon 32 | . . . . . . . . . . . . 1 1 3 2 . . . 2 1 . 1 . . . . . . 8 2 2 1 . . . . . . . 2 6 Launcher 30 | . 1 . . . . 2 . . . . 2 3 . 3 1 . . . . 4 . 1 1 . . 2 . . 2 3 1 . . 1 . 1 . 1 . 1 . Special Weapon 52 | . . . . . . . . . . 2 . 1 2 1 . . 2 1 2 4 1 1 . . . 3 1 . 4 6 8 1 . 1 1 7 1 1 . 1 . Impact Weapon . | . . . . . . . . . . . . . . . . . . . . . . . . . . . . . . . . . . . . . . . . . . Slashing Weapon 1 | . . . . . . . . . . . . . . 1 . . . . . . . . . . . . . . . . . . . . . . . . . . . Piercing Weapon . | . . . . . . . . . . . . . . . . . . . . . . . . . . . . . . . . . . . . . . . . . . Special Melee Weapon 1 | . . . . . . . . . . . . . . . . . . . . . . . . . . . . . . . 1 . . . . . . . . . . Unidentified Prototypes 33 | . . . . . 1 . . . 1 . 1 . . 1 . . . . 2 . . . . . . . 1 . 6 1 . 1 . . 1 5 1 . . . 11 Parts Lost 88 | . . . . . . 3 1 1 2 . . 2 . 11 2 1 1 . 2 2 . 2 . . . 2 1 . 5 2 9 . . . 1 5 3 1 . 4 25 Power 15 | . . . . . . 1 1 . . . . . . 1 . . . . . . . 1 . . . . . . 1 . 1 . . . . 1 1 . . 2 5 Propulsion 12 | . . . . . . . . . 1 . . . . 3 . 1 1 . 1 . . . . . . . . . 1 1 1 . . . . . . . . . 2 Utility 32 | . . . . . . . . . 1 . . . . 4 1 . . . . . . . . . . 2 1 . 1 1 4 . . . 1 2 1 . . . 13 Weapon 29 | . . . . . . 2 . 1 . . . 2 . 3 1 . . . 1 2 . 1 . . . . . . 2 . 3 . . . . 2 1 1 . 2 5 Highest Loss Streak 14 | . . . . . . 3 1 1 2 . . 2 . 2 2 1 1 . 1 1 . 2 . . . 1 1 . 2 1 4 . . . 1 3 1 1 . 3 14 Average Slot Usage (%) 88 | . 90 100 100 100 100 99 98 99 99 91 92 80 77 84 96 80 85 83 89 88 93 95 86 99 100 99 98 100 91 83 77 85 89 88 87 80 85 90 87 93 83 Engine 1 | . 14 14 14 3 . . 6 . 7 1 . . . . 5 . . . . . . 2 5 1 . . . . . . . . . . . . . . . . . Reactor 9 | . . . . . . . . . . 12 15 15 15 14 7 7 6 5 6 6 6 5 5 8 11 11 10 11 11 11 10 10 10 10 9 9 12 13 12 15 13 Treads 7 | . 28 25 28 28 27 27 27 27 21 . . . . . 19 4 17 14 8 8 . . . . . . . . . 2 4 9 10 5 5 8 8 8 8 . 2 Wheel 8 | . . 2 . . . . . . . 15 15 15 15 14 2 14 2 . 7 6 20 20 17 17 17 17 17 17 16 10 3 . . 5 3 . . . . 12 7 Device 9 | . . . . . 12 9 11 18 7 7 7 12 9 7 13 7 12 11 11 6 5 1 3 11 11 6 8 11 10 10 7 10 7 7 13 9 15 25 18 15 17 Storage 19 | . 19 28 28 27 27 27 27 27 23 23 23 19 15 15 23 30 26 26 26 26 26 26 19 17 17 17 17 17 17 17 19 21 21 21 19 19 17 17 17 16 15 Processor 3 | . . . . . . . . . 7 7 7 7 7 6 . . 6 6 6 2 4 3 . . . . . . . . . . . . . . . . . . 7 Hackware 7 | . . . . . . . . . . 6 . . 4 6 . . . 1 1 6 8 10 13 16 17 20 18 17 13 11 16 20 23 23 19 18 15 13 8 13 4 Protection 3 | . . . . . 6 9 6 . 6 . 7 1 . . 6 . . 2 6 9 6 8 6 11 11 11 10 11 7 5 6 3 5 4 6 3 2 . 7 6 6 Energy Gun 1 | . 14 14 14 14 7 . . . . . . . . . 3 . . . . . . . . . . . . . 3 1 . 2 . . . . . 2 3 3 1 Energy Cannon 8 | . . . . . 1 17 17 15 14 5 13 2 3 14 2 14 12 10 10 10 8 4 4 5 5 6 10 11 4 3 3 1 5 4 3 3 8 5 3 4 2 Ballistic Gun 1 | . 14 5 14 14 9 . . 1 . . . 5 5 . 7 . . . . . . . . . . . . . . . . . . . . . . . . . 1 Special Weapon 1 | . . . . . . . . . . 8 . . . . . . . 1 . 1 3 6 5 5 5 3 . . . 3 3 5 5 4 4 3 4 3 4 3 2 Naked Turns . | . . . . . . . . . . . . . . . . . . . . . . . . . . . . . . . . . . . . . . . . . . Heaviest Build 287 | 12 59 59 74 74 114 119 119 117 131 150 154 170 165 170 168 168 176 182 184 177 164 162 186 161 161 167 172 172 202 201 233 195 194 199 205 246 252 248 262 287 286 Greatest Support 120 | 40 40 40 40 40 60 60 60 60 60 40 40 40 40 68 68 40 80 100 100 92 36 36 36 36 36 36 36 36 36 80 80 120 120 80 90 100 105 105 105 48 115 Greatest Overweight (x) 14 | . 1 3 1 1 1 1 1 1 10 3 3 4 4 4 4 13 7 2 14 4 4 4 5 4 4 4 4 4 8 8 8 2 1 2 12 14 2 2 2 5 5 Average Overweight (x) 2 | . . 1 1 1 1 1 1 1 2 3 3 3 3 3 2 5 3 1 4 2 4 3 4 4 4 4 4 4 4 3 2 1 1 2 4 2 1 2 2 5 4 Largest Inventory Capacity 48 | 6 18 18 20 20 28 28 28 28 28 28 28 48 32 32 28 28 28 28 28 28 28 28 28 28 28 28 28 28 28 28 36 36 36 36 36 36 36 36 36 36 36 Average Capacity 30 | 5 14 18 19 19 28 28 28 28 28 28 28 30 32 31 28 28 28 28 28 28 28 28 28 28 28 28 28 28 28 28 33 36 36 36 36 36 36 36 36 36 32 Most Carried 36 | 6 16 18 20 20 28 28 28 28 28 28 28 32 32 32 28 28 28 28 28 28 28 28 28 28 28 28 28 28 28 28 36 36 36 36 36 36 36 36 36 36 36 Average Carried 28 | 3 11 17 19 19 25 26 27 27 27 27 27 28 30 29 27 26 27 27 27 27 27 26 27 27 28 27 27 28 26 26 29 35 35 35 35 35 34 35 35 35 31 Final Capacity 36 | 6 18 18 20 20 28 28 28 28 28 28 28 32 32 28 28 28 28 28 28 28 28 28 28 28 28 28 28 28 28 28 36 36 36 36 36 36 36 36 36 36 4 Final Carried 36 | 6 16 18 20 20 28 28 28 28 26 28 28 31 30 28 28 27 28 28 27 28 27 28 28 28 28 28 28 28 28 28 34 36 35 36 36 36 36 36 36 36 4 Class Distribution -------------------- 42% | Hauler-Mutant 24% | Botlord-Mutant 20% | Bothacker-Mutant 3% | Mutant Dominant Class ---------------- Mutant | -10/Materials Mutant | -10/Mines Hauler-Mutant | -10/Exiles Hauler-Mutant | -9/Mines Hauler-Mutant | -8/Materials Trapper-Mutant | -8/Garrison Trapper-Mutant | -8/Materials Hauler-Mutant | -8/Garrison Bothacker-Mutant | -7/Factory Bothacker-Mutant | -7/Waste Bothacker-Mutant | -7/Factory Bothacker-Mutant | -7/Lower Caves Hauler-Mutant | -7/Lower Caves Hauler-Mutant | -7/Zion Hauler-Mutant | -7/Deep Caves Hauler-Golem | -6/Proximity Caves Bothacker-Golem | -6/Factory Bothacker-Mutant | -6/Waste Bothacker-Mutant | -6/Factory Bothacker-Mutant | -6/Garrison Bothacker-Mutant | -6/Factory Bothacker-Mutant | -6/Garrison Botlord-Mutant | -5/Factory Botlord-Mutant | -5/Waste Botlord-Mutant | -5/Factory Botlord-Mutant | -5/Extension Botlord-Mutant | -5/Cetus Botlord-Mutant | -5/Archives Bothacker-Mutant | -5/Hub_04(d) Botlord-Mutant | -5/Garrison Botlord-Mutant | -4/Factory Botlord-Mutant | -4/Waste Botlord-Mutant | -4/Factory Botlord-Mutant | -4/Garrison Botlord-Mutant | -3/Research Botlord-Mutant | -3/Testing Botlord-Mutant | -2/Research Bothacker-Mutant | -2/Quarantine Botlord-Mutant | -2/Garrison Botlord-Mutant | -1/Access Botlord-Mutant | -1/Command Resources | -11 -10 -10 -10 -9 -8 -8 -8 -8 -7 -7 -7 -7 -7 -7 -7 -6 -6 -6 -6 -6 -6 -6 -5 -5 -5 -5 -5 -5 -5 -5 -4 -4 -4 -4 -3 -3 -2 -2 -2 -1 -1 ----------- Run | Scr Mat Min Exi Min Mat Gar Mat Gar Fac Was Fac Low Low Zio Dee Pro Fac Was Fac Gar Fac Gar Fac Was Fac Ext Cet Arc Hub Gar Fac Was Fac Gar Res Tes Res Qua Gar Acc Com Matter Collected 15327 | 204 255 129 10 53 162 150 80 143 335 135 202 368 228 951 534 117 315 105 370 463 80 273 170 125 . 458 108 53 1103 764 1392 232 61 432 285 859 415 469 373 557 1809 Remotely 1082 | . . . . . . . . . . . . . . . . . . . . . . . . . . . . . . . . . . . . . . . . . 1082 Salvage Created 31168 | . 171 136 . 116 194 559 807 830 792 1914 590 676 74 1318 762 630 1137 1881 1162 1196 133 106 126 583 . 413 30 80 1564 437 2291 185 239 180 . 1702 2244 914 1074 451 3471 Parts 1270 | . 21 13 . 4 14 25 46 34 31 47 36 43 6 93 14 16 50 29 49 39 8 6 1 10 . 18 . 2 76 24 67 5 5 10 . 101 81 52 44 25 125 Haulers Intercepted 21 | . . . . . 1 . 1 . 1 . 3 . . . . . 4 . 3 . 1 . . . . . . . 4 . 1 . . . . 1 1 . . . . Recyclers Shooed 6 | . . . . . . . . . 1 . 1 . . . . . . . 1 . . . . . . 1 . . . . 1 . . . . . 1 . . . . Parts Field Recycled . | . . . . . . . . . . . . . . . . . . . . . . . . . . . . . . . . . . . . . . . . . . Retrieved Matter . | . . . . . . . . . . . . . . . . . . . . . . . . . . . . . . . . . . . . . . . . . . Parts Self-Destructed 37 | . . . . . . . . . . . . 15 5 1 . 16 . . . . . . . . . . . . . . . . . . . . . . . . . Prevented 1 | . . . . . . . . . . . . . . 1 . . . . . . . . . . . . . . . . . . . . . . . . . . . Kills | -11 -10 -10 -10 -9 -8 -8 -8 -8 -7 -7 -7 -7 -7 -7 -7 -6 -6 -6 -6 -6 -6 -6 -5 -5 -5 -5 -5 -5 -5 -5 -4 -4 -4 -4 -3 -3 -2 -2 -2 -1 -1 ------- Run | Scr Mat Min Exi Min Mat Gar Mat Gar Fac Was Fac Low Low Zio Dee Pro Fac Was Fac Gar Fac Gar Fac Was Fac Ext Cet Arc Hub Gar Fac Was Fac Gar Res Tes Res Qua Gar Acc Com Combat Hostiles Destroyed 430 | . 3 4 . 1 2 17 12 18 11 6 6 14 2 6 48 10 17 6 7 21 . 1 2 2 . 9 . 1 23 18 32 . 3 8 . 29 26 16 12 9 28 Melee 1 | . . . . . . . . . . . . . . . . . . . . . . . . . . . . . . . . . . . . . . . 1 . . Guns 55 | . 3 2 . 1 2 . . 5 . . . 2 2 2 9 . . . . . . . . . . . . . 4 . 1 . . . . . . . 5 1 16 Cannons 213 | . . . . . . 9 12 10 8 6 4 2 . 4 6 10 17 6 7 11 . . 2 2 . 3 . . 7 7 11 . 1 5 . 21 16 11 2 3 10 AOE 110 | . . 2 . . . 8 . . 1 . 2 9 . . 33 . . . . 8 . 1 . . . 6 . . 10 11 5 . 1 3 . 3 . 3 . 3 1 Classes Destroyed 31 | . 5 . . 1 2 1 1 2 2 1 . 2 1 4 4 . . . . . . . . . . . . . 1 . . . . . . 2 . . 1 . 1 Worker 18 | . 1 . . . . . . . 1 . 2 . . . . . . . . . 1 . . . . . . . 3 . 8 . . . . 1 . 1 . . . Builder 14 | . 1 . . . . . 3 . 1 . 1 . . . . . . . . . . . . . . 1 . . 5 . 2 . . . . . . . . . . Tunneler 2 | . 1 . . . . . . . . . . . . . . . . . . . . . . . . . . . . . 1 . . . . . . . . . . Hauler 21 | . . . . . 1 . 1 . 1 . 3 . . . . . 4 . 3 . 1 . . . . . . . 4 . 1 . . . . 1 1 . . . . Recycler 7 | . . . . 1 . . 1 . 1 . . . . . . . . . 3 . . . . . . 1 . . . . . . . . . . . . . . . Operator 3 | . . . . . . . . . . . . . . . . . . . . . . . . . . . . . 1 . . . . . . 1 . 1 . . . Drone 1 | . . . . . . . . . . . . . . 1 . . . . . . . . . . . . . . . . . . . . . . . . . . . Watcher 10 | . 1 . . . 1 . 1 . 1 . . . . . . . . . . . . . . . . . . . . . 2 . . . . 1 1 2 . . . Swarmer 78 | . . . . . . 4 . 3 . . 2 4 . . . . 8 . 1 10 . 1 . . . 4 . . 8 12 . . . 7 . 3 . 8 . 3 . Saboteur 1 | . . . . . . . . . . . . . . . . . . . . . . . . . . . . . . . . . . . . . . . 1 . . Grunt 135 | . 3 4 . 1 . 11 8 9 5 . 2 2 1 1 . 7 4 . 5 9 . . 2 . . 4 . . 5 5 18 . 3 . . 5 11 1 8 1 . Brawler 3 | . . . . . . . . . 1 . . . . . . 2 . . . . . . . . . . . . . . . . . . . . . . . . . Duelist 6 | . . . . . . . . 2 1 . . . . . . . . . . 1 . . . . . . . . . . 1 . . . . . 1 . . . . Protector 2 | . . . . . . . . . . . . . . . . . . . . . . . . . . . . . 1 . 1 . . . . . . . . . . Sentry 23 | . . . . . 2 2 3 3 1 . 2 . . . . . 1 . 1 . . . . . . 1 . 1 1 . . . . . . . 3 . 1 . 1 Demolisher 1 | . . . . . . . . 1 . . . . . . . . . . . . . . . . . . . . . . . . . . . . . . . . . Hunter 14 | . . . . . . . 1 . . . . . . . . 1 . . . . . . . . . . . . . . 8 . . . . . . 2 . 2 . Programmer 60 | . . . . . . . . . 3 . . . . . . . 4 . . 1 . . . . . . . . 4 1 4 . . 1 . 20 11 5 1 3 2 Behemoth 4 | . . . . . . . . . . . . . . . . . . . 1 . . . . . . . . . . 1 . . . . . . . . 1 . 1 Compactor 14 | . . . . . . . . . . 6 . . . . . . . 6 . . . . . 2 . . . . . . . . . . . . . . . . . Enhanced Q-Series 22 | . . . . . . . . . . . . . . . . . . . . . . . . . . . . . . . . . . . . . . . . . 22 Lightning 4 | . . . . . . . . . . . . . . . . . . . . . . . . . . . . . 4 . . . . . . . . . . . . Combat Programmer 2 | . . . . . . . . . . . . . . . . . . . . . . . . . . . . . . . . . . . . . . . . . 2 Striker 1 | . . . . . . . . . . . . . . . . . . . . . . . . . . . . . . . . . . . . 1 . . . . . Alpha 7 1 | . . . . . . . . . . . . . . . . . . . . . . . . . . . . . . . . . . . . 1 . . . . . Protovariant L 1 | . . . . . . . . . . . . . . . . . . . . . . . . . . . . . . . . . . . . 1 . . . . . Zionite 60 | . . . . . . . . . . . . . . 60 . . . . . . . . . . . . . . . . . . . . . . . . . . . Z-Technician 3 | . . . . . . . . . . . . . . . 3 . . . . . . . . . . . . . . . . . . . . . . . . . . Tinkerer 2 | . . . . . . . . . . . . . . 1 . . . . . . . . . . . . 1 . . . . . . . . . . . . . . Master Thief 1 | . . . . . . . . . . . . . 1 . . . . . . . . . . . . . . . . . . . . . . . . . . . . Assembler 2 | . . . . . . . . . . . . . . . 2 . . . . . . . . . . . . . . . . . . . . . . . . . . Assembled 43 | . . . . . . . . . . . . . . . 43 . . . . . . . . . . . . . . . . . . . . . . . . . . Golem 5 | . . . . . . . . . . . . . . . 5 . . . . . . . . . . . . . . . . . . . . . . . . . . Surgeon 2 | . . . . . . . . . . . . 2 . . . . . . . . . . . . . . . . . . . . . . . . . . . . . Wasp 6 | . . . . . . . . . . . 1 3 . . . . . . 1 . . . . . . . . . . . . 1 . . . . . . . . . Thug 4 | . . . . . . . . . . 1 1 1 . 1 . . . . . . . . . . . . . . . . . . . . . . . . . . . Savage 1 | . . . . . . . . . . . . . . . . . . . . . . . . . . . . . . . . . . 1 . . . . . . . Butcher 7 | . . . . . . . . . . . . 4 . 3 . . . . . . . . . . . . . . . . . . . . . . . . . . . Martyr 6 | . . . . . . . . . . 2 . . . . . . . 2 . . . . . . . . . . . . . 2 . . . . . . . . . Marauder 2 | . . . . . . . . . . . . . . 2 . . . . . . . . . . . . . . . . . . . . . . . . . . . Mutant 2 | . . . . . . . . . . . . 1 . 1 . . . . . . . . . . . . . . . . . . . . . . . . . . . Best Kill Streak 37 | . 3 2 . 1 1 6 5 3 4 2 3 5 2 10 37 5 4 2 4 9 2 1 1 1 . 5 . 1 8 5 14 . 3 6 . 5 12 7 3 6 7 Combat Bots Only 37 | . 3 2 . 1 1 6 3 3 4 2 2 5 2 1 37 5 4 2 1 9 . 1 1 1 . 5 . 1 7 5 9 . 3 6 . 5 7 7 3 6 7 Max Kills in Single Turn 7 | . 1 1 . 1 1 2 2 2 2 1 2 2 1 2 7 2 1 1 1 3 2 1 1 1 . 4 1 1 3 5 5 1 1 2 . 4 1 2 1 3 1 Gunslinging . | . . . . . . . . . . . . . . . . . . . . . . . . . . . . . . . . . . . . . . . . . . Exploded 7 | . . 1 . . . 2 . . 1 . 2 2 . . 7 . . . . 3 . 1 . . . 4 . . 3 4 2 . 1 2 . 3 . 2 . 3 1 Melee 1 | . . . . . . . . . . . . . . . . . . . . . . . . . . . . . . . . . . . . . . . 1 . . Uniques/NPCs Destroyed 2 | . . . . . . . . . . . . . . 1 . . . . . . . . . . . . . . . . . . . . . . . . . . 1 Imprinter (-7/Zion) MAIN.C Shell (-1/Command) Combat | -11 -10 -10 -10 -9 -8 -8 -8 -8 -7 -7 -7 -7 -7 -7 -7 -6 -6 -6 -6 -6 -6 -6 -5 -5 -5 -5 -5 -5 -5 -5 -4 -4 -4 -4 -3 -3 -2 -2 -2 -1 -1 -------- Run | Scr Mat Min Exi Min Mat Gar Mat Gar Fac Was Fac Low Low Zio Dee Pro Fac Was Fac Gar Fac Gar Fac Was Fac Ext Cet Arc Hub Gar Fac Was Fac Gar Res Tes Res Qua Gar Acc Com Damage Taken 30324 | . 76 62 . 13 55 525 476 739 618 . 144 625 13 2179 534 812 860 . 647 1207 62 340 186 10 . 325 209 177 1989 735 2691 . 101 722 749 1321 798 628 484 741 8471 Core 3281 | . . 12 . . . 38 37 116 36 . . 44 . 277 18 149 158 . 99 90 26 31 36 . . 35 46 . 133 60 126 . . 41 40 89 28 53 13 36 1414 Absorbed by Shields 5620 | . . . . . . 46 . . . . . . . . . . . . . . . . 25 4 . 128 175 . . . . . . 10 . 73 332 601 432 574 3220 Reduced by Siege Mode 495 | . . . . . . . . . . . . . . . . . . . . . . . . . . . . . . . . . . . . 3 15 29 . . 448 Core Remaining (%) 68 | 100 . . . 95 . . . 65 . . . . . . . 25 . . . . . 52 . . . . . . . 69 . . . 85 . 90 . . 93 . 9 Volleys Fired 2381 | . 15 6 . 2 8 33 44 69 36 115 28 23 5 145 125 27 74 96 46 69 4 35 25 69 . 64 10 7 123 47 123 42 13 47 18 164 146 84 100 51 243 Largest 2 | . 2 2 . 2 2 2 2 2 2 1 2 2 1 2 2 2 2 2 2 2 2 1 1 1 . 2 2 2 2 2 2 1 1 1 1 1 1 1 1 1 1 Hottest 200 | . 76 86 . 76 81 150 150 135 180 30 180 126 30 153 98 50 50 50 115 155 144 75 98 98 . 188 188 188 196 163 163 88 110 110 110 200 113 113 113 113 200 Shots Fired 2951 | . 30 11 . 4 16 51 81 110 62 115 48 44 17 263 148 54 132 103 77 107 6 35 25 69 . 71 18 14 179 51 125 41 13 47 18 163 146 82 99 51 225 Gun 567 | . 30 9 . 4 16 . . 32 . . . 13 12 52 82 . . . . . . . . . . . . . 49 7 9 21 . . . . . 23 57 11 140 Cannon 1949 | . . . . . . 41 81 78 62 84 46 20 . 192 53 54 129 96 70 92 4 13 8 63 . 19 16 14 120 23 91 13 8 27 2 128 129 56 20 23 74 Launcher 84 | . . 2 . . . 10 . . . . 2 6 . 18 13 . . . . 6 . 1 . . . 2 . . 6 7 4 . . 2 . 2 . 2 . 1 . Special 351 | . . . . . . . . . . 31 . 5 5 1 . . 3 7 7 9 2 21 17 6 . 50 2 . 4 14 21 7 5 18 16 33 17 1 22 16 11 Kinetic 384 | . 15 4 . 2 8 . . 22 . . . 13 12 57 54 . . . 10 1 . . . . . . . . 26 6 17 2 . . . . . . . . 135 Thermal 1624 | . 15 5 . 2 8 41 81 22 23 107 36 9 . 187 81 54 129 96 60 51 . . 2 63 . 19 16 14 94 9 14 21 2 12 2 117 81 40 20 19 72 Explosive 84 | . . 2 . . . 10 . . . . 2 6 . 18 13 . . . . 6 . 1 . . . 2 . . 6 7 4 . . 2 . 2 . 2 . 1 . Electromagnetic 533 | . . . . . . . . 66 39 . 10 11 . . . . . . . 40 4 13 6 . . . . . 49 15 71 11 6 15 . 11 48 39 57 15 7 Robot Hit Streak 64 | . 7 8 . 4 4 8 13 18 15 13 5 13 14 12 19 26 17 18 21 10 6 9 7 18 . 21 11 7 10 9 15 11 9 14 4 26 30 12 19 6 64 Robot Miss Streak 7 | . 1 2 . . 7 3 2 3 2 4 2 2 5 4 4 6 3 1 2 2 . 2 4 2 . 3 4 1 7 2 3 2 . 1 2 2 3 4 5 3 3 Penetration Max 1 | . . . . . . . . 1 . . . . . 1 1 . . . . . . . . . . . . . . . 1 . . . . . . . . . . Secondary Targets 2 | . . . . . . . . . . . . . . 1 . . . . . . . . . . . . . . 1 . . . . . . . . . . . . Max Gunslinging Chain 1 | . . . . . . . . . . . . . . 1 . . . . . . . . . . . . . . 1 . . . . . . . . . . . . Capacitor 620 | . . . . . . . . . . . . . . . . . . . . . . . . . . . . . . . 35 32 8 27 2 123 129 79 77 34 74 Autonomous 25 | . . . . . . . . . . . . 13 12 . . . . . . . . . . . . . . . . . . . . . . . . . . . . Shots Hit Robots 1937 | . 18 6 . 2 7 26 46 62 43 86 23 25 11 159 100 37 59 85 49 66 5 18 15 55 . 53 12 12 90 30 86 28 8 24 10 122 123 43 56 32 205 Core Hits 1086 | . 8 7 . 3 5 30 24 30 22 24 17 26 5 81 158 15 26 16 19 35 3 3 3 7 . 17 4 5 49 22 53 5 4 9 . 48 33 27 22 10 211 Critical Hits 57 | . . . . . 1 1 2 . . 5 2 . . 2 1 . . . . . . . . . . . . . 11 1 15 1 . . . 7 . . . 1 7 Critical Kills 21 | . . . . . 1 1 1 . . 3 1 . . . . . . . . . . . . . . . . . 6 1 5 1 . . . 1 . . . . . Critical Parts Destroyed 35 | . . . . . . . 1 . . 1 1 . . 2 1 . . . . . . . . . . . . . 5 . 10 . . . . 6 . . . 1 7 Melee Attacks 1 | . . . . . . . . . . . . . . 1 . . . . . . . . . . . . . . . . . . . . . . . . . . . Impact . | . . . . . . . . . . . . . . . . . . . . . . . . . . . . . . . . . . . . . . . . . . Slashing 1 | . . . . . . . . . . . . . . 1 . . . . . . . . . . . . . . . . . . . . . . . . . . . Piercing . | . . . . . . . . . . . . . . . . . . . . . . . . . . . . . . . . . . . . . . . . . . Sneak Attacks 1 | . . . . . . . . . . . . . . 1 . . . . . . . . . . . . . . . . . . . . . . . . . . . Combat Hostiles . | . . . . . . . . . . . . . . . . . . . . . . . . . . . . . . . . . . . . . . . . . . Follow-up Attacks . | . . . . . . . . . . . . . . . . . . . . . . . . . . . . . . . . . . . . . . . . . . Damage Inflicted 94438 | . 269 162 . 95 134 1225 1267 1601 1649 2238 897 1327 257 5534 6282 1713 2898 4078 2123 2971 124 230 116 1883 . 1403 521 368 4415 2401 6472 715 395 883 . 6025 5353 2350 1389 1903 20772 Guns 17537 | . 235 45 . 31 134 . . 527 . . . 267 257 707 1141 . . . . . . . . . . . . . 797 76 117 435 . . . . . 409 1030 228 11101 Cannons 55786 | . . . . . . 525 1175 951 1306 2017 768 311 . 3701 1629 1713 2898 4078 2034 2115 124 124 116 1883 . 430 407 368 2044 750 3942 280 120 314 . 5249 5152 1341 359 859 6703 Explosions 19897 | . . 93 . . . 692 . 83 304 . 129 749 . 1126 3247 . . . . 856 . 106 . . . 891 . . 1574 1575 2413 . 275 544 . 714 188 582 . 816 2940 Melee . | . . . . . . . . . . . . . . . . . . . . . . . . . . . . . . . . . . . . . . . . . . Ramming 997 | . 34 24 . 64 . 8 92 40 39 . . . . . 265 . . . 89 . . . . . . 82 114 . . . . . . 25 . 62 13 18 . . 28 Kinetic 15387 | . 71 15 . . 90 . . 412 . . . 267 257 1376 712 . . . 297 . . . . . . . . . 266 179 379 . . . . . . . . . 11066 Thermal 49296 | . 164 30 . 31 44 525 1175 361 706 2238 583 294 . 3032 2058 1713 2898 4078 1737 1255 . . . 1883 . 430 407 368 1932 196 230 435 . 221 . 5099 3627 996 359 644 9547 Explosive 15660 | . . 93 . . . 692 . . . . 129 596 . 1126 3247 . . . . 811 . 106 . . . 891 . . 1420 1575 2360 . 275 544 . 478 . 501 . 816 . Electromagnetic 13098 | . . . . . . . . 788 904 . 185 170 . . . . . . . 905 124 124 116 . . . . . 797 451 3503 280 120 93 . 386 1713 835 1030 443 131 Impact . | . . . . . . . . . . . . . . . . . . . . . . . . . . . . . . . . . . . . . . . . . . Slashing . | . . . . . . . . . . . . . . . . . . . . . . . . . . . . . . . . . . . . . . . . . . Piercing . | . . . . . . . . . . . . . . . . . . . . . . . . . . . . . . . . . . . . . . . . . . Highest Corruption 48 | . . . . . . . . 1 . . . . . 6 6 6 . . 1 1 1 1 . . 1 3 5 5 24 23 8 8 8 8 . 1 5 10 11 . 48 Average Corruption 8 | . . . . . . . . 1 . . . . . 6 6 6 . . 1 1 1 1 . . 1 2 4 5 19 23 8 8 8 8 . 1 3 7 10 . 31 Corruption Purged 3 | . . . . . . . . . . . . . . . . . . . . . . . . . . . . . 3 . . . . . . . . . . . . Effects 821 | . . . . . . . . 11 . . . . . 33 63 18 . . 7 6 1 7 . . . 12 10 17 151 100 19 30 8 57 . 3 13 46 59 . 150 Message Errors 140 | . . . . . . . . 4 . . . . . 8 13 3 . . . 3 . 4 . . . 3 2 5 15 18 4 6 . 16 . 1 4 6 10 . 15 Matter Fused 131 | . . . . . . . . . . . . . . 6 18 3 . . . . . . . . . 3 3 3 17 18 5 8 3 7 . . . 11 16 . 10 Heat Flow Errors 63 | . . . . . . . . . . . . . . 3 7 2 . . . . . . . . . . . 4 10 11 4 2 . 10 . . 3 5 . . 2 Energy Discharges 72 | . . . . . . . . 2 . . . . . 2 8 3 . . 1 2 1 1 . . . 2 . 2 12 4 1 3 2 7 . 1 1 4 6 . 7 Parts Rejected 6 | . . . . . . . . . . . . . . 1 . . . . . . . . . . . . 1 . 2 . . . 1 . . . . . . . 1 Data Loss (minor) 63 | . . . . . . . . 2 . . . . . 1 5 2 . . 1 . . 2 . . . 4 1 1 12 6 1 4 2 6 . . 2 4 3 . 4 Data Loss (major) 22 | . . . . . . . . . . . . . . . 2 1 . . . . . . . . . . 1 2 4 6 . . . 3 . . . . . . 3 Misfires 14 | . . . . . . . . . . . . . . 3 1 . . . . . . . . . . . . . 4 . 1 1 . 1 . . . 1 1 . 1 Alerts 3 | . . . . . . . . . . . . . . . . . . . . . . . . . . . . . 1 1 . . . . . . . . . . 1 Misdirections 64 | . . . . . . . . . . . . . . . . . . . . . . . . . . . . . 15 19 . . . . . . . 3 8 . 19 Targeting Errors 193 | . . . . . . . . 3 . . . . . 6 7 4 . . 4 1 . . . . . . 2 . 48 14 1 4 . 6 . . 3 9 13 . 68 Weapon Failures 50 | . . . . . . . . . . . . . . 3 2 . . . 1 . . . . . . . . . 11 3 2 2 . 1 . 1 . 3 2 . 19 Overload Shots . | . . . . . . . . . . . . . . . . . . . . . . . . . . . . . . . . . . . . . . . . . . Overflow Damage 3343 | . . . . . . 2 23 2 58 . 16 9 . 172 80 101 146 5 61 117 . 28 . . . 4 12 . 290 62 283 . 58 60 . 229 394 174 15 230 712 Projectiles 2106 | . . . . . . . 18 2 8 . 16 . . 160 8 101 67 5 61 117 . . . . . . 10 . 187 27 172 . . 9 . 172 335 67 15 41 508 Explosions 1210 | . . . . . . 2 . . 50 . . 9 . 12 57 . 79 . . . . 28 . . . 4 . . 103 35 111 . 58 51 . 52 59 107 . 189 204 Melee 27 | . . . . . . . 5 . . . . . . . 15 . . . . . . . . . . . 2 . . . . . . . . 5 . . . . . Knockbacks 26 | . . . . . . . . . 2 . . . . 10 5 . . . 1 . . . . . . . . . 2 3 3 . . . . . . . . . . Impact 5 | . . . . . . . . . 2 . . . . . 3 . . . . . . . . . . . . . . . . . . . . . . . . . . Kinetic 19 | . . . . . . . . . . . . . . 10 1 . . . 1 . . . . . . . . . 2 2 3 . . . . . . . . . . Secondary 2 | . . . . . . . . . . . . . . . 1 . . . . . . . . . . . . . . 1 . . . . . . . . . . . Self-Inflicted Damage 2179 | . . 7 . . . 41 . 40 134 . . 52 . 83 79 . 283 . 86 135 . . . . . 82 84 . 286 122 236 . . . . 101 60 162 . . 106 Shots 39 | . . . . . . 1 . . 2 . . 1 . 5 3 . 3 . . 4 . . . . . . . . 5 3 5 . . . . 2 1 2 . . 2 Rammed 70 | . 2 7 . 8 . 1 5 . 6 . . . . . 27 . . . 1 . . . . . . . 4 . . . . . . 2 . 3 2 1 . . 1 Targets Rammed 77 | . 4 7 . 8 . 1 8 . 6 . . . . . 29 . . . 1 . . . . . . . 4 . . . . . . 2 . 3 2 1 . . 1 Kicked . | . . . . . . . . . . . . . . . . . . . . . . . . . . . . . . . . . . . . . . . . . . Crushed 7 | . 2 . . . . . 3 . . . . . . . 2 . . . . . . . . . . . . . . . . . . . . . . . . . . Highest Temperature 442 | . 105 39 . 21 25 192 247 . 366 11 330 246 28 347 178 229 23 1 204 6 63 64 218 160 . 219 404 213 298 237 227 186 247 355 74 355 336 179 284 317 442 Average Temperature 82 | . 46 20 . 11 10 60 93 . 104 7 83 89 17 85 26 96 4 1 24 3 30 16 54 58 . 72 140 105 95 80 79 75 73 89 28 109 91 27 62 108 102 Received Heat Transfer 4040 | . 42 24 . 9 27 241 252 189 180 . 36 . 9 200 118 261 108 . 126 234 18 87 57 . . 43 . 27 333 90 342 . 54 39 33 51 98 4 78 28 602 Effects 18 | . . . . . . . 3 . 2 . 2 1 . 2 . . . . . . . . . . . . 2 . . . . . 1 1 . 2 . . . . 2 Shutdowns 3 | . . . . . . . . . 1 . . . . . . . . . . . . . . . . . 1 . . . . . . . . . . . . . 1 Energy Bleed 4 | . . . . . . . . . 1 . . 1 . . . . . . . . . . . . . . . . . . . . 1 . . . . . . . 1 Interference 10 | . . . . . . . 3 . . . 2 . . 2 . . . . . . . . . . . . . . . . . . . 1 . 2 . . . . . Matter Decay 1 | . . . . . . . . . . . . . . . . . . . . . . . . . . . 1 . . . . . . . . . . . . . . Siege Activations 27 | . . . . . . . . . . . . . . . . . . . . . . . . . . . . . . . 1 . . . . 6 8 3 1 . 8 Total Turns 524 | . . . . . . . . . . . . . . . . . . . . . . . . . . . . . . . 8 . . . . 120 137 35 3 . 221 Longest Duration 73 | . . . . . . . . . . . . . . . . . . . . . . . . . . . . . . . 8 . . . . 37 48 17 3 . 73 Robots Corrupted 55 | . . . . . . . . 3 2 . . 1 . . . . . . . 6 . 1 . . . . . . 2 . 15 1 1 . . 2 12 2 4 2 1 Combat Hostiles 46 | . . . . . . . . 3 2 . . 1 . . . . . . . 2 . . . . . . . . 1 . 15 . 1 . . 2 10 2 4 2 1 Parts Fried 123 | . . . . . . . 1 8 7 . 1 1 . . 1 . . . . 6 . . 1 . . . 1 . 6 2 39 5 2 . . 3 16 12 10 1 . Impact Corruptions 10 | . . . . . . . 1 . . . . . . . 5 . . . . . . . . . . . 1 . . 1 . . . . . 2 . . . . . Robots Melted 6 | . . . . . . . . . . . . . . 1 . . . . . . . . . . . . . 1 1 . . . . . . 3 . . . . . Combat Hostiles 5 | . . . . . . . . . . . . . . . . . . . . . . . . . . . . 1 1 . . . . . . 3 . . . . . Parts Melted 64 | . . . . . . 1 2 1 . . . . . 13 . . 1 . . . . . . 1 . . . 1 4 1 1 . . 1 . 18 10 . 1 4 4 Heat Transferred 42279 | . 407 74 . 74 111 777 1739 544 657 3552 703 285 . 4282 2047 950 1500 2300 1075 1225 . . . 2850 . 611 405 485 2344 185 235 666 . 125 . 3305 2801 790 296 481 4398 Parts Sabotaged 5 | . . . . . . . . . . . . . . . . . . . . . . . . . . . . . . . . . . . . . . . 5 . . Parts Stolen . | . . . . . . . . . . . . . . . . . . . . . . . . . . . . . . . . . . . . . . . . . . Parts Stripped . | . . . . . . . . . . . . . . . . . . . . . . . . . . . . . . . . . . . . . . . . . . Power Chain Reactions 8 | . . . . . . . . 1 1 . . 1 . . . . . . . 1 . . . . . . . . 1 . 1 . . . . . 1 1 . . . Missiles Intercepted 1 | . . . . . . . . . . . . . . . . . . . . . . . . . . . . . . . . . . . . . . . . . 1 Alert | -11 -10 -10 -10 -9 -8 -8 -8 -8 -7 -7 -7 -7 -7 -7 -7 -6 -6 -6 -6 -6 -6 -6 -5 -5 -5 -5 -5 -5 -5 -5 -4 -4 -4 -4 -3 -3 -2 -2 -2 -1 -1 ------- Run | Scr Mat Min Exi Min Mat Gar Mat Gar Fac Was Fac Low Low Zio Dee Pro Fac Was Fac Gar Fac Gar Fac Was Fac Ext Cet Arc Hub Gar Fac Was Fac Gar Res Tes Res Qua Gar Acc Com Peak Influence 1142 | . 145 106 . 76 62 598 553 842 441 122 438 . . . . . 368 118 955 1142 709 833 482 132 83 1017 988 569 631 909 833 292 153 498 402 312 305 322 452 370 144 Initial 599 | . . 56 . . . 31 291 359 441 119 . . . . . . 37 115 . 415 599 496 421 120 . 40 568 395 76 403 476 252 32 107 279 84 77 131 165 271 50 Average 331 | . 72 69 . 3 30 477 409 603 303 55 197 . . . . . 130 51 502 886 651 662 397 77 13 665 736 456 344 740 584 206 111 304 244 88 136 225 311 304 44 Maximum Alert Level 4 | . . . . . . 2 2 3 2 . 2 . . . . . 1 . 3 4 3 3 2 . . 3 3 2 2 3 3 1 . 2 2 1 1 1 2 1 . Low Security (%) 41 | 100 100 100 . 100 100 8 . . 16 100 56 . . . . . 79 100 28 . . . . 100 100 11 . . 12 . . 52 100 31 28 97 74 30 7 4 100 Level 1 23 | . . . . . . 16 58 13 55 . 28 . . . . . 20 . 14 . . . 36 . . 2 . 52 55 . 8 47 . 36 68 2 25 69 83 95 . Level 2 22 | . . . . . . 74 41 69 28 . 14 . . . . . . . 20 16 99 60 63 . . 16 48 47 31 36 58 . . 32 3 . . . 8 . . Level 3 12 | . . . . . . . . 16 . . . . . . . . . . 37 73 . 39 . . . 69 51 . . 63 32 . . . . . . . . . . Level 4 . | . . . . . . . . . . . . . . . . . . . . 9 . . . . . . . . . . . . . . . . . . . . . Level 5 . | . . . . . . . . . . . . . . . . . . . . . . . . . . . . . . . . . . . . . . . . . . High Security . | . . . . . . . . . . . . . . . . . . . . . . . . . . . . . . . . . . . . . . . . . . Max Security . | . . . . . . . . . . . . . . . . . . . . . . . . . . . . . . . . . . . . . . . . . . Squads Dispatched 79 | . 1 . . . . . 2 . 7 . 2 . . . . . 6 . 8 . . . 6 . . 4 . . 10 . 9 . 1 . 6 11 3 3 . . . Investigation 12 | . 1 . . . . . . . . . . . . . . . 1 . 2 . . . 1 . . . . . . . 1 . 1 . 3 2 . . . . . Extermination 24 | . . . . . . . . . 3 . 1 . . . . . 2 . 2 . . . . . . . . . 3 . 2 . . . . 7 2 2 . . . Reinforcement 28 | . . . . . . . 2 . 1 . 1 . . . . . 1 . 4 . . . 2 . . 3 . . 2 . 5 . . . 3 2 1 1 . . . Assault 3 | . . . . . . . . . . . . . . . . . 1 . . . . . . . . 1 . . . . 1 . . . . . . . . . . Garrison 12 | . . . . . . . . . 3 . . . . . . . 1 . . . . . 3 . . . . . 5 . . . . . . . . . . . . Intercept . | . . . . . . . . . . . . . . . . . . . . . . . . . . . . . . . . . . . . . . . . . . Construction Impeded 11 | . . . . . . . . . 1 . . . . . . . . . 1 . . . 1 . . 2 . . 2 . 3 . . . 1 . . . . . . Haulers Reinforced 6 | . . . . . . . . . . . 1 . . . . . 1 . 1 . . . . . . . . . . . 1 . . . 1 1 . . . . . Alert ID Control Effect 93 | . . . . . . . . . . . . . . . . . . . . . . 2 10 . . 1 5 . 1 3 1 . . 14 23 12 6 . 5 10 . Stealth | -11 -10 -10 -10 -9 -8 -8 -8 -8 -7 -7 -7 -7 -7 -7 -7 -6 -6 -6 -6 -6 -6 -6 -5 -5 -5 -5 -5 -5 -5 -5 -4 -4 -4 -4 -3 -3 -2 -2 -2 -1 -1 --------- Run | Scr Mat Min Exi Min Mat Gar Mat Gar Fac Was Fac Low Low Zio Dee Pro Fac Was Fac Gar Fac Gar Fac Was Fac Ext Cet Arc Hub Gar Fac Was Fac Gar Res Tes Res Qua Gar Acc Com Distress Signals 33 | . 2 1 . . . . 2 . . . . . . . . . . . 2 . . . 2 . . 1 2 . 1 . 4 . . . 4 2 1 1 . 2 6 Communications Jammed 36 | . . . . . . . . . . . . . . . . . . . . . . . . . . . . . . . . . . . . . 7 1 . 5 23 Distress Signals 35 | . . . . . . . . . . . . . . . . . . . . . . . . . . . . . . . . . . . . . 7 . . 5 23 Times Spotted 946 | . 8 5 . 2 6 16 19 27 12 6 18 18 10 95 56 12 17 5 26 30 2 29 20 5 1 42 15 4 44 26 69 5 4 38 31 53 44 19 30 28 49 Peak Tracking Total 33 | . 4 2 . 2 2 6 3 5 4 3 3 5 5 9 33 5 5 2 5 8 2 10 5 3 1 7 5 2 7 6 11 2 3 10 4 7 8 5 3 8 15 Tactical Retreats 44 | . 2 1 . . . . 1 5 . . . . . 4 5 1 2 . . 3 . 1 1 . . 1 . . . 1 5 . . 1 . 3 5 . . 2 . Traps | -11 -10 -10 -10 -9 -8 -8 -8 -8 -7 -7 -7 -7 -7 -7 -7 -6 -6 -6 -6 -6 -6 -6 -5 -5 -5 -5 -5 -5 -5 -5 -4 -4 -4 -4 -3 -3 -2 -2 -2 -1 -1 ------- Run | Scr Mat Min Exi Min Mat Gar Mat Gar Fac Was Fac Low Low Zio Dee Pro Fac Was Fac Gar Fac Gar Fac Was Fac Ext Cet Arc Hub Gar Fac Was Fac Gar Res Tes Res Qua Gar Acc Com Traps Triggered 62 | . . . . . . 4 . 6 2 . . . . . . . 1 . 1 9 . 2 1 . 1 . . . 4 8 2 . . 6 2 1 3 . 9 . . Indirectly . | . . . . . . . . . . . . . . . . . . . . . . . . . . . . . . . . . . . . . . . . . . Trap Hack Attempts . | . . . . . . . . . . . . . . . . . . . . . . . . . . . . . . . . . . . . . . . . . . Triggered . | . . . . . . . . . . . . . . . . . . . . . . . . . . . . . . . . . . . . . . . . . . Disarmed 5 | . . . . . . . . . . . . . . . . . . . . . . . . . . . . . . . . . . . . . . 5 . . . Reprogrammed 7 | . 7 . . . . . . . . . . . . . . . . . . . . . . . . . . . . . . . . . . . . . . . . Reused 16 | . . . . . . . 1 2 . . . . . 2 3 . 1 . . . . . . . . . . . 7 . . . . . . . . . . . . Traps Reconfigurated 56 | . . . . 5 6 . . . 3 . . . . . . . 6 . 7 . . . . . . . . . 11 8 6 . . 4 . . . . . . . Traps Extracted 18 | . . . . 5 6 . 1 . . . . 3 . 3 . . . . . . . . . . . . . . . . . . . . . . . . . . . Installed 12 | . . . . . . . 2 2 . . . . . 5 3 . . . . . . . . . . . . . . . . . . . . . . . . . . Triggered 12 | . . . . . . . 1 2 . . . . . . . . 1 . . . . . . . . . . . 7 . . . . . . . . 1 . . . Exploded 3 | . . . . . . 2 1 . . . . . . . . . . . . . . . . . . . . . . . . . . . . . . . . . . Machines | -11 -10 -10 -10 -9 -8 -8 -8 -8 -7 -7 -7 -7 -7 -7 -7 -6 -6 -6 -6 -6 -6 -6 -5 -5 -5 -5 -5 -5 -5 -5 -4 -4 -4 -4 -3 -3 -2 -2 -2 -1 -1 ---------- Run | Scr Mat Min Exi Min Mat Gar Mat Gar Fac Was Fac Low Low Zio Dee Pro Fac Was Fac Gar Fac Gar Fac Was Fac Ext Cet Arc Hub Gar Fac Was Fac Gar Res Tes Res Qua Gar Acc Com Machines Disabled 103 | . . . . . . 3 2 3 1 . 2 . . 2 3 . 7 . 3 4 3 5 1 . . 7 2 1 7 4 8 . 3 4 2 8 . 10 4 . 4 Max in Single Turn 4 | . . . . . . 1 1 1 1 . 1 . . 1 1 . 3 . 1 1 . 1 . . . 1 1 . 2 1 4 . 1 1 . 1 . 2 1 . 2 Garrison Access 3 | . . . . . . . . . . . . . . . . . 1 . . . . . . . . . . . 1 . . . . . 1 . . . . . . Garrison Relay 24 | . . . . . . 2 . 2 . . . . . . . . . . . 4 . 4 . . . . . . . 4 . . . 4 . . . . 4 . . Network Hub 2 | . . . . . . . . . . . . . . . . . . . . . . . . . . . . . 2 . . . . . . . . . . . . Machines Sabotaged . | . . . . . . . . . . . . . . . . . . . . . . . . . . . . . . . . . . . . . . . . . . Garrisons Compromised . | . . . . . . . . . . . . . . . . . . . . . . . . . . . . . . . . . . . . . . . . . . Overloaded Fab Kills . | . . . . . . . . . . . . . . . . . . . . . . . . . . . . . . . . . . . . . . . . . . Fab Network Shutdowns 1 | . . . . . . . . . . . . . . . . . . . . . . . . . . . . . . . . . . . . . . . . 1 . Hacking | -11 -10 -10 -10 -9 -8 -8 -8 -8 -7 -7 -7 -7 -7 -7 -7 -6 -6 -6 -6 -6 -6 -6 -5 -5 -5 -5 -5 -5 -5 -5 -4 -4 -4 -4 -3 -3 -2 -2 -2 -1 -1 --------- Run | Scr Mat Min Exi Min Mat Gar Mat Gar Fac Was Fac Low Low Zio Dee Pro Fac Was Fac Gar Fac Gar Fac Was Fac Ext Cet Arc Hub Gar Fac Was Fac Gar Res Tes Res Qua Gar Acc Com Machines Accessed 111 | . 6 . 2 2 3 . 3 . 3 . 10 . . . . . 8 . 8 . 3 . 4 . . 7 1 . 9 . 2 . 3 . 4 9 2 8 . 8 6 Terminals 66 | . 5 . . . 1 . . . 2 . 5 . . . . . 3 . 4 . 2 . 2 . . 7 1 . 7 . 1 . 1 . 2 5 2 5 . 6 5 Fabricators 10 | . . . . . . . . . . . 2 . . . . . . . 2 . . . 1 . . . . . . . 1 . 1 . . 2 . . . 1 . Repair Stations 7 | . . . . . . . 2 . . . . . . . . . . . . . . . . . . . . . . . . . . . 1 1 . 1 . 1 1 Recycling Units 8 | . 1 . . . . . . . 1 . 3 . . . . . 2 . 1 . . . . . . . . . . . . . . . . . . . . . . Scanalyzers 5 | . . . . . 1 . . . . . . . . . . . 2 . . . . . . . . . . . . . . . . . . 1 . 1 . . . Garrison Access 11 | . . . . . 1 . 1 . . . . . . . . . 1 . 1 . 1 . 1 . . . . . 2 . . . 1 . 1 . . 1 . . . Total Hacks 382 | . 35 . 2 2 5 . 5 . 5 . 27 . . . . . 19 . 17 . 8 . 16 . . 12 2 . 38 . 11 . 14 . 16 32 11 41 . 52 12 Successful 173 | . 20 . 2 2 3 . 5 . . . 14 . . . . . 9 . 8 . 3 . 9 . . 4 . . 24 . 6 . 7 . 3 11 4 18 . 19 2 Failed 207 | . 15 . . . 2 . . . 5 . 13 . . . . . 10 . 9 . 5 . 7 . . 8 2 . 14 . 5 . 7 . 13 21 7 23 . 31 10 Catastrophic 51 | . 2 . . . 1 . . . 2 . 2 . . . . . 1 . 3 . 1 . 3 . . 2 1 . 2 . . . 1 . 3 8 2 4 . 7 6 Database Lockouts 2 | . . . . . . . . . . . . . . . . . . . . . . . . . . . . . . . . . . . . . . . . 2 . Manual 183 | . 18 . 1 . 1 . . . 2 . 13 . . 5 . . 6 . 6 . 5 . 10 . . 2 1 . 27 . 6 . 7 . 9 11 2 21 . 24 6 Terminals 245 | . 30 . . . 3 . . . 4 . 15 . . . . . 9 . 5 . 6 . 8 . . 12 2 . 31 . 4 . 3 . 7 12 11 30 . 42 11 Fabricators 47 | . . . . . . . . . . . 8 . . . . . . . 6 . . . 4 . . . . . . . 7 . 8 . . 8 . . . 6 . Repair Stations 23 | . . . . . . . 4 . . . . . . . . . . . . . . . . . . . . . . . . . . . 5 5 . 4 . 4 1 Recycling Units 17 | . 5 . . . . . . . 1 . 4 . . . . . 4 . 3 . . . . . . . . . . . . . . . . . . . . . . Scanalyzers 14 | . . . . . 1 . . . . . . . . . . . 3 . . . . . . . . . . . . . . . . . . 7 . 3 . . . Garrison Access 32 | . . . . . 1 . 1 . . . . . . . . . 3 . 3 . 2 . 4 . . . . . 7 . . . 3 . 4 . . 4 . . . Terminal Hacks 68 | . 14 . 2 2 1 . . . . . 8 . . . . . 1 . . . 2 . 2 . . 3 . . 7 . 1 . 1 . . . 3 6 . 13 2 Record 9 | . . . 1 . . . . . . . . . . . . . . . . . . . . . . . . . . . . . . . . . . . . 8 . Part Schematic 1 | . . . . . . . . . . . 1 . . . . . . . . . . . . . . . . . . . . . . . . . . . . . . Robot Schematic 2 | . 1 . . . . . . . . . 1 . . . . . . . . . . . . . . . . . . . . . . . . . . . . . . Robot Analysis 2 | . 2 . . . . . . . . . . . . . . . . . . . . . . . . . . . . . . . . . . . . . . . . Prototype ID Bank 7 | . 2 . . . . . . . . . . . . . . . . . . . . . . . . . . . 2 . . . 1 . . . . 2 . . . Open Door 9 | . . . . 2 . . . . . . . . . . . . . . . . . . . . . 2 . . . . . . . . . . 1 . . 3 1 Branch Access Points 4 | . 1 . . . . . . . . . 1 . . . . . . . . . . . 1 . . . . . . . . . . . . . 1 . . . . Terminal Index 1 | . . . . . . . . . . . 1 . . . . . . . . . . . . . . . . . . . . . . . . . . . . . . Unreport Threat 6 | . . . . . . . . . . . 2 . . . . . . . . . . . . . . 1 . . 1 . . . . . . . . . . 2 . Locate Traps 13 | . 2 . . . 1 . . . . . 1 . . . . . 1 . . . 2 . . . . . . . 3 . 1 . . . . . . 1 . . 1 Disarm Traps 1 | . . . . . . . . . . . . . . . . . . . . . . . . . . . . . . . . . . . . . . 1 . . . Reprogram Traps 2 | . 2 . . . . . . . . . . . . . . . . . . . . . . . . . . . . . . . . . . . . . . . . Patrol Status 1 | . 1 . . . . . . . . . . . . . . . . . . . . . . . . . . . . . . . . . . . . . . . . Hauler Manifests 5 | . 2 . . . . . . . . . 1 . . . . . . . . . . . 1 . . . . . . . . . . . . . . 1 . . . Registered Components 1 | . 1 . . . . . . . . . . . . . . . . . . . . . . . . . . . . . . . . . . . . . . . . Zone Layout 3 | . . . . . . . . . . . . . . . . . . . . . . . . . . . . . 1 . . . . . . . 1 1 . . . EX-Prototype ID Bank 1 | . . . 1 . . . . . . . . . . . . . . . . . . . . . . . . . . . . . . . . . . . . . . Fabricator Hacks 13 | . . . . . . . . . . . 1 . . . . . . . 2 . . . . . . . . . . . 2 . 2 . . 4 . . . 2 . Load Schematic 6 | . . . . . . . . . . . . . . . . . . . 1 . . . . . . . . . . . 1 . 1 . . 2 . . . 1 . Build 7 | . . . . . . . . . . . 1 . . . . . . . 1 . . . . . . . . . . . 1 . 1 . . 2 . . . 1 . Repair Station Hacks 8 | . . . . . . . 4 . . . . . . . . . . . . . . . . . . . . . . . . . . . 1 1 . 2 . . . Scan Component 5 | . . . . . . . 2 . . . . . . . . . . . . . . . . . . . . . . . . . . . 1 1 . 1 . . . Repair 3 | . . . . . . . 2 . . . . . . . . . . . . . . . . . . . . . . . . . . . . . . 1 . . . Recycling Unit Hacks 6 | . 1 . . . . . . . . . 3 . . . . . 1 . 1 . . . . . . . . . . . . . . . . . . . . . . Retrieve Components 6 | . 1 . . . . . . . . . 3 . . . . . 1 . 1 . . . . . . . . . . . . . . . . . . . . . . Scanalyzer 8 | . . . . . . . . . . . . . . . . . 3 . . . . . . . . . . . . . . . . . . 4 . 1 . . . Insert Component 8 | . . . . . . . . . . . . . . . . . 3 . . . . . . . . . . . . . . . . . . 4 . 1 . . . Garrison Access Hacks 16 | . . . . . 1 . 1 . . . . . . . . . 1 . 2 . 1 . 1 . . . . . 4 . . . 2 . 1 . . 2 . . . Unlock Access 7 | . . . . . 1 . 1 . . . . . . . . . . . 1 . 1 . . . . . . . 1 . . . 1 . . . . 1 . . . Seal Access 2 | . . . . . . . . . . . . . . . . . . . . . . . . . . . . . 1 . . . . . 1 . . . . . . Coupler Status 7 | . . . . . . . . . . . . . . . . . 1 . 1 . . . 1 . . . . . 2 . . . 1 . . . . 1 . . . Unauthorized Hacks 53 | . 5 . . . 1 . . . . . 2 . . . . . 3 . 3 . . . 6 . . 1 . . 12 . 3 . 2 . 1 2 1 7 . 4 . Terminals 38 | . 4 . . . 1 . . . . . 2 . . . . . 1 . . . . . 3 . . 1 . . 10 . 1 . 1 . 1 2 1 6 . 4 . Track 12 | . 2 . . . . . . . . . . . . . . . . . . . . . 1 . . . . . 4 . . . . . . 1 . 3 . 1 . Assimilate 2 | . . . . . . . . . . . . . . . . . . . . . . . . . . . . . 2 . . . . . . . . . . . . Botnet 22 | . 1 . . . 1 . . . . . 2 . . . . . 1 . . . . . 2 . . 1 . . 4 . 1 . 1 . 1 1 1 3 . 2 . Operators 2 | . 1 . . . . . . . . . . . . . . . . . . . . . . . . . . . . . . . . . . . . . . 1 . Fabricators 3 | . . . . . . . . . . . . . . . . . . . 1 . . . . . . . . . . . 2 . . . . . . . . . . Prioritize 1 | . . . . . . . . . . . . . . . . . . . . . . . . . . . . . . . 1 . . . . . . . . . . Siphon 1 | . . . . . . . . . . . . . . . . . . . . . . . . . . . . . . . 1 . . . . . . . . . . Haulers 1 | . . . . . . . . . . . . . . . . . . . 1 . . . . . . . . . . . . . . . . . . . . . . Repair Stations . | . . . . . . . . . . . . . . . . . . . . . . . . . . . . . . . . . . . . . . . . . . Recycling Units 2 | . 1 . . . . . . . . . . . . . . . . . 1 . . . . . . . . . . . . . . . . . . . . . . Tunnel 2 | . 1 . . . . . . . . . . . . . . . . . 1 . . . . . . . . . . . . . . . . . . . . . . Scanalyzers . | . . . . . . . . . . . . . . . . . . . . . . . . . . . . . . . . . . . . . . . . . . Garrison Access 10 | . . . . . . . . . . . . . . . . . 2 . 1 . . . 3 . . . . . 2 . . . 1 . . . . 1 . . . Broadcast 2 | . . . . . . . . . . . . . . . . . . . . . . . 1 . . . . . 1 . . . . . . . . . . . . Restock 1 | . . . . . . . . . . . . . . . . . . . . . . . 1 . . . . . . . . . . . . . . . . . . Reprogram 5 | . . . . . . . . . . . . . . . . . 1 . 1 . . . 1 . . . . . 1 . . . . . . . . 1 . . . Eject 2 | . . . . . . . . . . . . . . . . . 1 . . . . . . . . . . . . . . . 1 . . . . . . . . Data Cores Recovered 2 | . . . . . . . . . . . . . . . . . . . . . . . . . . . . . 1 . . . . . . . . 1 . . . Used . | . . . . . . . . . . . . . . . . . . . . . . . . . . . . . . . . . . . . . . . . . . Hacking Detections 98 | . 5 . . . 2 . 1 . 3 . 8 . . . . . 8 . 7 . 3 . 4 . . 7 1 . 9 . 2 . 3 . 4 9 2 8 . 7 5 Full Trace Events 7 | . 1 . . . . . . . . . . . . . . . . . 1 . . . 1 . . . . . . . 1 . . . 1 2 . . . . . Feedback Events . | . . . . . . . . . . . . . . . . . . . . . . . . . . . . . . . . . . . . . . . . . . Feedback Blocked . | . . . . . . . . . . . . . . . . . . . . . . . . . . . . . . . . . . . . . . . . . . Robot Schematics Acquired 2 | . 1 . . . . . . . . . 1 . . . . . . . . . . . . . . . . . . . . . . . . . . . . . . Robots Built 6 | . . . . . . . . . . . . . . . . . . . 2 . . . . . . . . . . . . . 2 . . 2 . . . . . Matter 810 | . . . . . . . . . . . . . . . . . . . 252 . . . . . . . . . . . . . 252 . . 306 . . . . . Time 309 | . . . . . . . . . . . . . . . . . . . 134 . . . . . . . . . . . . . 67 . . 108 . . . . . Total Robot Build Rating 18 | . . . . . . . . . . . . . . . . . . . 8 . . . . . . . . . . . . . 8 . . 2 . . . . . Part Schematics Acquired 1 | . . . . . . . . . . . 1 . . . . . . . . . . . . . . . . . . . . . . . . . . . . . . Parts Built 6 | . . . . . . . . . . . 2 . . . . . . . . . . . . . . . . . . . 2 . . . . . . . . 2 . Matter 570 | . . . . . . . . . . . 234 . . . . . . . . . . . . . . . . . . . 168 . . . . . . . . 168 . Time 229 | . . . . . . . . . . . 117 . . . . . . . . . . . . . . . . . . . 84 . . . . . . . . 28 . Total Part Build Rating 30 | . . . . . . . . . . . 14 . . . . . . . . . . . . . . . . . . . 8 . . . . . . . . 8 . Parts Repaired 2 | . . . . . . . 1 . . . . . . . . . . . . . . . . . . . . . . . . . . . . . . 1 . . . Time 123 | . . . . . . . 76 . . . . . . . . . . . . . . . . . . . . . . . . . . . . . . 47 . . . Parts Recycled . | . . . . . . . . . . . . . . . . . . . . . . . . . . . . . . . . . . . . . . . . . . Recycled Matter . | . . . . . . . . . . . . . . . . . . . . . . . . . . . . . . . . . . . . . . . . . . Retrieved Matter . | . . . . . . . . . . . . . . . . . . . . . . . . . . . . . . . . . . . . . . . . . . Retrieved Components 24 | . 9 . . . . . . . . . 13 . . . . . . . 2 . . . . . . . . . . . . . . . . . . . . . . Parts Scanalyzed . | . . . . . . . . . . . . . . . . . . . . . . . . . . . . . . . . . . . . . . . . . . Part Schematics Acquired . | . . . . . . . . . . . . . . . . . . . . . . . . . . . . . . . . . . . . . . . . . . Parts Damaged . | . . . . . . . . . . . . . . . . . . . . . . . . . . . . . . . . . . . . . . . . . . Bothacking | -11 -10 -10 -10 -9 -8 -8 -8 -8 -7 -7 -7 -7 -7 -7 -7 -6 -6 -6 -6 -6 -6 -6 -5 -5 -5 -5 -5 -5 -5 -5 -4 -4 -4 -4 -3 -3 -2 -2 -2 -1 -1 ------------ Run | Scr Mat Min Exi Min Mat Gar Mat Gar Fac Was Fac Low Low Zio Dee Pro Fac Was Fac Gar Fac Gar Fac Was Fac Ext Cet Arc Hub Gar Fac Was Fac Gar Res Tes Res Qua Gar Acc Com Used RIF Installer 7 | . . . . . . 1 . 1 . . . . . . . . . . . 1 . 1 . . . . . . . 1 . . . 1 . . . . 1 . . Coupler Efficiency 1 | . . . . . . . . 1 . . . . . . . . . . . . . . . . . . . . . . . . . . . . . . . . . Hotswap 1 | . . . . . . . . . . . . . . . . . . . . . . . . . . . . . . . . . . 1 . . . . . . . Threat Obfuscator 2 | . . . . . . . . . . . . . . . . . . . . 1 . . . . . . . . . 1 . . . . . . . . . . . Zone Cloak 1 | . . . . . . . . . . . . . . . . . . . . . . . . . . . . . . . . . . . . . . . 1 . . Alert ID Control 1 | . . . . . . . . . . . . . . . . . . . . . . 1 . . . . . . . . . . . . . . . . . . . Robots Hacked 171 | . . . . . . . . . . 6 . . 4 . . . 3 6 3 4 1 15 11 6 . 7 1 . 2 7 14 5 4 10 7 17 6 1 13 13 5 Non-combat 21 | . . . . . . . . . . . . . . . . . 1 . 1 . . . 2 . . 1 . . . . 6 . . . . 1 . . . 7 2 Combat 150 | . . . . . . . . . . 6 . . 4 . . . 2 6 2 4 1 15 9 6 . 6 1 . 2 7 8 5 4 10 7 16 6 1 13 6 3 Robot Hacks Applied 182 | . . . . . . . . . . 7 . . 4 . . . 3 6 6 4 2 15 11 6 . 7 1 . 2 7 15 6 5 10 7 18 6 1 13 14 6 parse_system 29 | . . . . . . . . . . 1 . . . . . . . . . . . . 2 . . 4 1 . . . 1 1 4 2 2 3 . . . 4 4 find_chute 3 | . . . . . . . . . . . . . . . . . 1 . . . . . 1 . . . . . . . 1 . . . . . . . . . . ignore_repairs 6 | . . . . . . . . . . . . . . . . . . . . . . . 1 . . . . . . . 5 . . . . . . . . . . map_walls 2 | . . . . . . . . . . . . . . . . . . . . . . . . . . . . . . . . . . . . . . . . 2 . drop_inventory 1 | . . . . . . . . . . . . . . . . . . . . . . . . . . . . . . . . . . . . . . . . 1 . purge_threat 2 | . . . . . . . . . . . . . . . . . . . 2 . . . . . . . . . . . . . . . . . . . . . . map_route 1 | . . . . . . . . . . . . . . . . . . . . . . . . . . . . . . . . . . . . . . . . 1 . ignore_targets 23 | . . . . . . . . . . 6 . . . . . . . 6 . . . . . 6 . . . . . . . 5 . . . . . . . . . find_garrison 2 | . . . . . . . . . . . . . . . . . . . 1 . 1 . . . . . . . . . . . . . . . . . . . . reboot_system 4 | . . . . . . . . . . . . . . . . . . . . . . . . . . . . . . 1 1 . . . . . 1 . 1 . . overwrite_iff 35 | . . . . . . . . . . . . . . . . . . . 1 . . 8 . . . . . . . 2 4 . . 4 1 5 1 1 5 3 . formatsys_low 2 | . . . . . . . . . . . . . . . . . . . 1 . . . . . . . . . . . . . . . . . . . . . 1 formatsys_high 72 | . . . . . . . . . . . . . 4 . . . 2 . 1 4 1 7 7 . . 3 . . 2 4 3 . 1 4 4 10 4 . 7 3 1 Manual 1 | . . . . . . . . . . . . . . . . . . . . . . . . . . . . . . . . . . . . . . . . . 1 Relay Couplers Released 112 | . . . . . . 6 . 9 . . . . . . . . 11 . . 15 . 15 . . . . . . 2 15 . . 4 14 3 . . . 18 . . Ejected 8 | . . . . . . . . . . . . . . . . . 4 . . . . . . . . . . . . . . . 4 . . . . . . . . Machine Destruction 97 | . . . . . . 6 . 9 . . . . . . . . . . . 15 . 15 . . . . . . 2 15 . . . 14 3 . . . 18 . . Programmers 7 | . . . . . . . . . . . . . . . . . 7 . . . . . . . . . . . . . . . . . . . . . . . . Attached 42 | . . . . . . . . . . 1 . . 2 . . . 1 1 2 2 1 6 4 1 . 1 . . 1 3 3 1 1 6 2 1 . . . 2 . Robots Rewired 39 | . . . . . . . . 6 . . . 2 . 1 . . . . . . . 6 . . . 20 . . . . . . . 3 . . . . 1 . . Allies Hacked 12 | . . . . . . . . . . . 1 . . . . . 1 . 1 . . . . . . . . . . . . . . . . 3 4 . . . 2 Hacks Repelled . | . . . . . . . . . . . . . . . . . . . . . . . . . . . . . . . . . . . . . . . . . . Allies | -11 -10 -10 -10 -9 -8 -8 -8 -8 -7 -7 -7 -7 -7 -7 -7 -6 -6 -6 -6 -6 -6 -6 -5 -5 -5 -5 -5 -5 -5 -5 -4 -4 -4 -4 -3 -3 -2 -2 -2 -1 -1 -------- Run | Scr Mat Min Exi Min Mat Gar Mat Gar Fac Was Fac Low Low Zio Dee Pro Fac Was Fac Gar Fac Gar Fac Was Fac Ext Cet Arc Hub Gar Fac Was Fac Gar Res Tes Res Qua Gar Acc Com Total Allies 247 | . . . . 2 . . . 6 . 19 . 2 4 1 . . 3 19 5 4 1 21 9 19 . 26 5 . 4 6 7 19 3 12 6 17 5 1 13 6 2 Largest Group 29 | . . . . 2 2 . . 6 . 19 16 4 5 5 . . 1 19 19 2 2 13 6 22 22 29 18 5 8 1 3 19 12 14 10 3 2 . 4 7 2 Highest-Rated Group 1074 | . . . . 50 50 . . 60 . 477 376 127 92 92 . . 55 714 685 67 44 297 211 808 808 1074 934 532 582 81 103 696 562 702 595 168 128 . 254 316 96 Highest-Rated Ally 156 | . . . . 31 31 . . 10 . 35 33 33 31 73 . . 55 50 46 41 32 32 81 50 50 156 156 156 94 81 47 50 115 115 115 64 64 . 69 64 64 Total Orders 71 | . . . . . . . . . . . . 7 3 27 . . . . . . . . . . . . 1 . 1 . . . . 18 1 5 2 . . . 6 STAY 12 | . . . . . . . . . . . . 1 . 1 . . . . . . . . . . . . 1 . 1 . . . . 2 . 2 1 . . . 3 ROAM 10 | . . . . . . . . . . . . . . . . . . . . . . . . . . . . . . . . . . 9 1 . . . . . . FOLLOW 13 | . . . . . . . . . . . . 1 . 1 . . . . . . . . . . . . . . . . . . . 7 . 1 1 . . . 2 AID 3 | . . . . . . . . . . . . . . . . . . . . . . . . . . . . . . . . . . . . 2 . . . . 1 RETURN 33 | . . . . . . . . . . . . 5 3 25 . . . . . . . . . . . . . . . . . . . . . . . . . . . Ally Attacks 2082 | . . . . 7 12 . . 23 . . 125 63 90 226 . . 6 . 173 4 1 107 57 101 32 192 140 21 60 16 34 97 12 96 127 82 45 1 58 64 10 Total Damage 52380 | . . . . 122 168 . . 280 . . 1768 537 986 1345 . . 428 . 3057 170 9 1759 1692 3381 602 7188 3951 775 1891 404 631 3310 255 3609 5165 2618 1636 48 2290 2017 288 Kills 331 | . . . . 1 . . . 1 . . 11 7 5 26 . . . . 31 . . 19 14 5 5 49 28 3 13 3 1 10 . 26 34 14 6 . 9 10 . Allies Corrupted 14 | . . . . . . . . . . . . . . 1 . . . . . . . . . . . . . . 6 . . 1 . . . 5 . . . 1 . Allies Melted 1 | . . . . . . . . . . . . . . . . . . . . . . 1 . . . . . . . . . . . . . . . . . . . Intel | -11 -10 -10 -10 -9 -8 -8 -8 -8 -7 -7 -7 -7 -7 -7 -7 -6 -6 -6 -6 -6 -6 -6 -5 -5 -5 -5 -5 -5 -5 -5 -4 -4 -4 -4 -3 -3 -2 -2 -2 -1 -1 ------- Run | Scr Mat Min Exi Min Mat Gar Mat Gar Fac Was Fac Low Low Zio Dee Pro Fac Was Fac Gar Fac Gar Fac Was Fac Ext Cet Arc Hub Gar Fac Was Fac Gar Res Tes Res Qua Gar Acc Com Robot Analysis Total 2 | . 2 . . . . . . . . . . . . . . . . . . . . . . . . . . . . . . . . . . . . . . . . Derelict Logs Recovered 7 | . . 2 . 1 . . . . . . . . 2 1 . 1 . . . . . . . . . . . . . . . . . . . . . . . . . Drone Launches 107 | . . . . . . . . . . . . 26 7 74 . . . . . . . . . . . . . . . . . . . . . . . . . . . Drone Recoveries 104 | . . . . . . . . . . . . 23 10 71 . . . . . . . . . . . . . . . . . . . . . . . . . . . Exploration | -11 -10 -10 -10 -9 -8 -8 -8 -8 -7 -7 -7 -7 -7 -7 -7 -6 -6 -6 -6 -6 -6 -6 -5 -5 -5 -5 -5 -5 -5 -5 -4 -4 -4 -4 -3 -3 -2 -2 -2 -1 -1 ------------- Run | Scr Mat Min Exi Min Mat Gar Mat Gar Fac Was Fac Low Low Zio Dee Pro Fac Was Fac Gar Fac Gar Fac Was Fac Ext Cet Arc Hub Gar Fac Was Fac Gar Res Tes Res Qua Gar Acc Com Turns Passed 58182 | 96 707 763 938 1291 475 1220 782 1491 1389 869 1247 469 458 16842 1813 501 1733 912 1721 1203 261 1435 630 651 216 1114 333 817 1754 1350 1279 835 237 1761 1106 2447 1002 1012 1193 609 1220 Spaces Moved 20291 | 53 371 425 515 592 222 564 253 524 550 466 804 272 311 1078 649 281 741 254 844 620 177 633 399 353 154 721 194 48 885 698 488 437 116 758 515 1042 371 447 545 361 560 Core 51 | 2 . . . . . . . . . . . . . . . . . . . . . . . . . . . . . . . . . . . . . . . . 49 Treads 11090 | 51 371 339 515 592 222 564 253 524 527 . . . . 106 579 . 579 254 350 344 . . . . . . . . . 299 466 437 116 758 398 1038 371 447 545 . 45 Legs . | . . . . . . . . . . . . . . . . . . . . . . . . . . . . . . . . . . . . . . . . . . Wheels 9150 | . . 86 . . . . . . 23 466 804 272 311 972 70 281 162 . 494 276 177 633 399 353 154 721 194 48 885 399 22 . . . 117 4 . . . 361 466 Hover . | . . . . . . . . . . . . . . . . . . . . . . . . . . . . . . . . . . . . . . . . . . Flight . | . . . . . . . . . . . . . . . . . . . . . . . . . . . . . . . . . . . . . . . . . . Fastest Speed 50 | 50 160 130 180 180 180 190 190 190 125 125 125 125 125 105 125 135 140 180 150 130 130 120 130 130 130 130 130 130 126 136 155 167 167 200 197 172 165 185 185 140 50 Average Speed 164 | 155 168 169 180 180 182 190 190 190 207 125 125 126 127 139 197 144 190 183 167 153 130 126 132 130 130 130 130 130 135 164 198 171 167 200 201 196 190 185 185 140 134 Slowest Speed 260 | 160 180 180 180 180 190 190 190 190 230 125 125 135 135 206 206 220 212 198 260 172 130 130 140 130 130 130 130 130 170 200 200 200 167 200 210 230 197 185 185 140 202 Overloaded Moves . | . . . . . . . . . . . . . . . . . . . . . . . . . . . . . . . . . . . . . . . . . . Propulsion Burnouts . | . . . . . . . . . . . . . . . . . . . . . . . . . . . . . . . . . . . . . . . . . . Robots Hopped . | . . . . . . . . . . . . . . . . . . . . . . . . . . . . . . . . . . . . . . . . . . Cave-ins Triggered 2 | . . . . . . . . . . . . . . . . . . . . . . . . . . . . . . . 1 . . . . . . . . . 1 Exploration Rate (%) 53 | 5 69 81 69 98 22 73 26 57 19 96 29 53 57 53 79 57 19 96 32 74 4 77 12 95 5 88 74 68 84 83 17 96 4 63 15 95 12 57 76 12 25 Regions Visited 41 Branch Regions 15 Pre-discovered Areas 5 | . 1 . 1 1 . . . . . . . . 1 . . . . . 1 . . . . . . . . . . . . . . . . . . . . . . Known Exits Taken 15 | . 1 . . . 1 . 1 . . . 1 1 1 . . 1 . . 1 . 1 . . . 1 . . . 1 . . . 1 . 1 . 1 1 . . . Unknown Exits Taken 11 | 1 . 1 1 1 . . . . . . . . . 1 1 . . . . . . . . . . 1 1 1 . . . . . . . 1 . . . 1 . Scrap Searched 15 | . . 1 . 3 . . . . . . . 3 2 2 . 4 . . . . . . . . . . . . . . . . . . . . . . . . . Spaces Dug 190 | . . . . . . . 8 . 3 . 14 10 . . 6 2 21 . 8 33 . . 2 1 . . . . 36 3 . 2 2 22 1 . . 4 4 . 8 Terrain Destroyed 1157 | . . 10 . . . 39 26 6 41 3 34 63 6 27 14 16 72 4 27 77 . 12 2 6 . 18 2 2 132 68 87 2 11 39 1 110 31 51 7 12 99 Melee . | . . . . . . . . . . . . . . . . . . . . . . . . . . . . . . . . . . . . . . . . . . Projectile 328 | . . . . . . 1 26 1 12 3 14 9 6 11 14 16 52 4 23 9 . . 2 6 . 4 1 2 35 3 17 2 2 3 1 8 6 11 7 2 15 AOE 824 | . . 10 . . . 38 . 5 29 . 20 54 . 16 . . 20 . . 68 . 12 . . . 14 . . 97 65 70 . 9 36 . 102 25 40 . 10 84 Terrain Rammed 7 | . . . . . . . . 1 . . . . . . . . . . 4 . . . . . . 1 1 . . . . . . . . . . . . . . Walls Destroyed 5 | . . . . . . . . . . . . . . . . . . . 4 . . . . . . . 1 . . . . . . . . . . . . . . Machines Disabled 2 | . . . . . . . . 1 . . . . . . . . . . . . . . . . . 1 . . . . . . . . . . . . . . . Doors Sealed 1 | . . . . . . . . . . . . . . . . . . . . . . . . . . . . . . . 1 . . . . . . . . . . Actions | -11 -10 -10 -10 -9 -8 -8 -8 -8 -7 -7 -7 -7 -7 -7 -7 -6 -6 -6 -6 -6 -6 -6 -5 -5 -5 -5 -5 -5 -5 -5 -4 -4 -4 -4 -3 -3 -2 -2 -2 -1 -1 --------- Run | Scr Mat Min Exi Min Mat Gar Mat Gar Fac Was Fac Low Low Zio Dee Pro Fac Was Fac Gar Fac Gar Fac Was Fac Ext Cet Arc Hub Gar Fac Was Fac Gar Res Tes Res Qua Gar Acc Com Total 43027 | 64 423 450 530 811 281 661 468 913 720 622 996 374 374 16161 1005 323 936 606 1065 764 199 1243 482 480 170 848 255 788 1246 850 728 522 159 990 584 1418 663 632 735 466 1022 Wait 18271 | . 7 6 . 179 3 37 140 205 68 10 136 10 29 14802 164 6 55 230 104 6 10 456 38 40 15 41 32 731 134 5 27 20 16 136 9 90 94 65 30 1 84 Move 20258 | 52 370 424 514 591 222 563 253 523 550 465 803 271 310 1077 648 280 741 253 844 619 177 632 399 352 153 720 193 47 884 697 488 436 115 757 514 1041 370 447 544 360 559 Hop . | . . . . . . . . . . . . . . . . . . . . . . . . . . . . . . . . . . . . . . . . . . Pick Up 409 | 6 15 3 7 17 18 6 8 12 9 9 6 10 5 45 7 3 11 5 7 10 1 11 6 4 1 2 1 . 9 13 18 6 3 11 5 25 14 8 16 15 21 Fast Attach 166 | 6 3 . . 2 3 1 2 . 3 3 1 4 . 6 . . 4 2 9 . . 1 2 2 . . 6 1 21 . 9 1 3 . 11 14 6 7 11 4 18 Attach 231 | . . . 1 3 7 3 2 3 9 . 1 19 8 17 3 1 3 3 7 6 . 7 2 3 . 2 . . 8 10 26 4 1 2 4 16 9 1 1 13 26 Detach 118 | . 1 . . . 2 1 . . 2 1 1 11 3 . 3 1 9 6 4 . . 3 . . . . . . 8 6 17 2 1 1 5 8 3 1 . 3 15 Swap 378 | . 1 3 1 . 4 4 1 3 28 7 12 12 6 23 9 3 23 2 19 21 6 8 6 3 . 14 2 1 36 20 11 5 2 16 2 28 10 5 1 7 13 Drop 418 | . 7 1 7 9 14 4 8 11 9 12 7 14 8 39 14 2 14 9 12 7 . 2 2 7 1 4 6 1 23 6 9 6 5 4 13 29 9 13 17 12 41 Fire 2381 | . 15 6 . 2 8 33 44 69 36 115 28 23 5 145 125 27 74 96 46 69 4 35 25 69 . 64 10 7 123 47 123 42 13 47 18 164 146 84 100 51 243 Melee 1 | . . . . . . . . . . . . . . 1 . . . . . . . . . . . . . . . . . . . . . . . . . . . Ram 14 | . . 2 . . . . . 1 . . . . . . . . . . 4 . . . . . . 1 5 . . . . . . . . . . . . . 1 Kick . | . . . . . . . . . . . . . . . . . . . . . . . . . . . . . . . . . . . . . . . . . . Crush 70 | . 4 5 . 8 . 1 8 . 6 . . . . . 29 . . . 1 . . . . . . . . . . . . . . 2 . 3 2 1 . . . Escape Stasis 138 | . . . . . . 8 . 2 . . . . . . . . . . 8 24 . 25 . . . . . . . 46 . . . 12 2 . . . 11 . . Rewire 161 | . . . . . . . . 82 . . 1 . . . . . 2 . . 2 1 63 2 . . . . . . . . . . 2 1 . . . 4 . 1 Trap 13 | . . . . . . . 2 2 . . . . . 6 3 . . . . . . . . . . . . . . . . . . . . . . . . . . Miscellaneous . | . . . . . . . . . . . . . . . . . . . . . . . . . . . . . . . . . . . . . . . . . . Route ------- -11/Scrapyard -10/Materials (discovered 3 exits: [*Mat] / *Min x2) -10/Mines (discovered 3 exits: [*Mat x2] / *Exi) -10/Exiles -9/Mines (discovered 2 exits: *Mat x2) -8/Materials (discovered 2 exits: *Fac / Gar) -8/Garrison (discovered 2 exits: *Mat x2) -8/Materials -8/Garrison (discovered 2 exits: *Fac x2) -7/Factory (discovered 2 exits: *Fac / Sto) -7/Waste -7/Factory (discovered 4 exits: Sto x2 / *Low x2) -7/Lower Caves -7/Lower Caves -7/Zion (discovered 2 exits: [*Dee] / *Pro) -7/Deep Caves -6/Proximity Caves -6/Factory (discovered 2 exits: *Fac / Low) -6/Waste -6/Factory (discovered 3 exits: *Fac / *Low / Gar) -6/Garrison (discovered 3 exits: *Fac x3) -6/Factory (discovered 2 exits: *Fac / Gar) -6/Garrison (discovered 3 exits: *Fac x3) -5/Factory (discovered 5 exits: *Fac / Upp x2 / Ext x2) -5/Waste -5/Factory -5/Extension (discovered 2 exits: *Fac / *Cet) -5/Cetus (discovered 2 exits: *Fac / [*Arc]) -5/Archives -5/Hub_04(d) (discovered 5 exits: *Fac x4 / Gar) -5/Garrison (discovered 3 exits: *Fac x3) -4/Factory -4/Waste -4/Factory -4/Garrison (discovered 2 exits: *Res x2) -3/Research (discovered 2 exits: *Res / *Tes) -3/Testing -2/Research (discovered 2 exits: *Qua x2) -2/Quarantine (discovered 2 exits: *Acc / Gar) -2/Garrison (discovered 3 exits: *Acc x3) -1/Access -1/Command (discovered 2 exits: *Sur x2) To Epsilon Eridani History --------- Turn | Location | Event 21 | -11/Scrapyard | Discovered new exit (range 15) 97 | -11/Scrapyard | Entered Materials 248 | -10/Materials | Identified exit to Mines 292 | -10/Materials | Discovered new exit (range 16) 309 | -10/Materials | Build established: Mutant 804 | -10/Materials | Entered Mines 811 | -10/Mines | Received a Rocket Launcher from a helpful Derelict 843 | -10/Mines | Discovered new exit (range 8) 1021 | -10/Mines | Learned Materials security intel 1057 | -10/Mines | Deemed a non-threat by the Exiles lab entrance 1057 | -10/Mines | Discovered new exit (range 5) 1167 | -10/Mines | Discovered new exit (range 8) 1381 | -10/Mines | Assembled infested the area 1567 | -10/Mines | Entered Exiles 1594 | -10/Exiles | Discovered new exit (range 15) 1630 | -10/Exiles | Met 8R-AWN 1661 | -10/Exiles | Met EX-HEX 1762 | -10/Exiles | Met EX-DEC 1796 | -10/Exiles | Learned location of Zion (-7) 1825 | -10/Exiles | Met EX-BIN 1850 | -10/Exiles | Aligned with FarCom system 1852 | -10/Exiles | Given EX-Vault access code 1893 | -10/Exiles | Opened EX-Vault 1904 | -10/Exiles | Found AWS/Gauss 1911 | -10/Exiles | Found Trap Reconfigurator 1916 | -10/Exiles | Found Skeleton Box 1951 | -10/Exiles | Warned to stay clear of 0b10 Research branches 2012 | -10/Exiles | Build established: Hauler-Mutant 2505 | -10/Exiles | Stole three prototypes: Skeleton Box, Trap Reconfigurator, AWS/Gauss 2505 | -10/Exiles | Entered Mines 2519 | -9/Mines | Learned location of Storage (-7) 2988 | -9/Mines | Found the Drone Emporium 3000 | -9/Mines | Found Prototype Device 3060 | -9/Mines | Discovered new exit (range 7) 3085 | -9/Mines | Met a Derelict who couldn't figure out how to use a Trap Extractor 3528 | -9/Mines | Discovered new exit (range 16) 3533 | -9/Mines | A weapon hastily lodged in a ceiling crevice suddenly fell to the ground 3796 | -9/Mines | Entered Materials 3796 | -8/Materials | Accompanied by 2 allies 3796 | -8/Materials | Evolved 4 slots: Propulsion x1, Utility x3 3799 | -8/Materials | Identified Thief Drone Bay 3801 | -8/Materials | Led the pair of lost Derelicts to an unsafe place 4247 | -8/Materials | Discovered new exit (range 3) 4269 | -8/Materials | Identified exit to Garrison 4271 | -8/Materials | Entered Garrison 4311 | -8/Garrison | Triggered checkpoint 4379 | -8/Garrison | Garrison Relay disabled 4398 | -8/Garrison | Triggered checkpoint 4423 | -8/Garrison | Build established: Trapper-Mutant 4482 | -8/Garrison | Triggered checkpoint 4602 | -8/Garrison | Triggered checkpoint 4636 | -8/Garrison | Discovered new exit (range 14) 4727 | -8/Garrison | Garrison Relay disabled 4820 | -8/Garrison | Triggered checkpoint 4872 | -8/Garrison | Lost 3 parts (1p2w) 4929 | -8/Garrison | Discovered new exit (range 15) 4967 | -8/Garrison | Installed Relay Interface Framework 5107 | -8/Garrison | Build established: Hauler-Mutant 5491 | -8/Garrison | Entered Materials 5606 | -8/Materials | Repaired Hvy. Particle Cannon 5635 | -8/Materials | Build established: Trapper-Mutant 6273 | -8/Materials | Identified exit to Garrison 6273 | -8/Materials | Entered Garrison 6375 | -8/Garrison | Build established: Hauler-Mutant 6446 | -8/Garrison | Triggered checkpoint 6777 | -8/Garrison | Discovered new exit (range 10) 6886 | -8/Garrison | Garrison Relay disabled 7060 | -8/Garrison | Triggered checkpoint 7103 | -8/Garrison | Triggered checkpoint 7306 | -8/Garrison | Triggered checkpoint 7617 | -8/Garrison | Discovered new exit (range 8) 7642 | -8/Garrison | Expanded RIF knowledge: Coupler Efficiency 7678 | -8/Garrison | Triggered checkpoint 7710 | -8/Garrison | Garrison Relay disabled 7764 | -8/Garrison | Entered Factory 7764 | -7/Factory | Evolved 2 slots: Power x1, Utility x1 7765 | -7/Factory | Identified exit to Storage 7766 | -7/Factory | FarCom data flow suspended 8679 | -7/Factory | Build established: Bothacker-Mutant 8700 | -7/Factory | Garrison activated, responded to threat 8865 | -7/Factory | Discovered new exit (range 5) 8872 | -7/Factory | Identified exit to Factory 9153 | -7/Factory | Sucked down chute 9153 | -7/Factory | Entered Waste 9208 | -7/Waste | Destroyed C-40 Crusher 9210 | -7/Waste | Spotted C-40 Crusher 9218 | -7/Waste | Spotted C-40 Crusher 9227 | -7/Waste | Found Damper Plating 9244 | -7/Waste | Spotted C-40 Crusher 9244 | -7/Waste | Spotted C-40 Crusher 9272 | -7/Waste | Spotted C-40 Crusher 9314 | -7/Waste | Destroyed C-40 Crusher 9343 | -7/Waste | Destroyed C-40 Crusher 9348 | -7/Waste | Found Damper Plating 9365 | -7/Waste | Destroyed C-40 Crusher 9367 | -7/Waste | Destroyed C-40 Crusher 9494 | -7/Waste | Destroyed C-40 Crusher 9700 | -7/Waste | Discovered new exit (range 12) 9722 | -7/Waste | Warlord forces began an assault 9832 | -7/Waste | Identified exit to Factory 10022 | -7/Waste | Entered Factory 10022 | -7/Factory | Accompanied by 16 allies 10581 | -7/Factory | Fabricated Hardcell Cannon? 10734 | -7/Factory | Identified exit to Lower Caves 11269 | -7/Factory | Entered Lower Caves 11269 | -7/Lower Caves | Accompanied by 4 allies 11413 | -7/Lower Caves | Attacked by a faux Warlord 11662 | -7/Lower Caves | Ambushed by wild Derelicts 11699 | -7/Lower Caves | Discovered new exit (range 16) 11718 | -7/Lower Caves | Identified exit to Lower Caves 11738 | -7/Lower Caves | Entered another Lower Caves area 11738 | -7/Lower Caves | Accompanied by 5 allies 11796 | -7/Lower Caves | Learned location of 1 exit from Factory 11817 | -7/Lower Caves | Build established: Hauler-Mutant 12060 | -7/Lower Caves | Spotted 0H-RZE(f) 12062 | -7/Lower Caves | Encountered a Master Thief 12062 | -7/Lower Caves | Spotted 3R-ONH(f) 12062 | -7/Lower Caves | Spotted V4-PTQ(f) 12063 | -7/Lower Caves | Encountered a Master Thief 12063 | -7/Lower Caves | Encountered a Master Thief 12069 | -7/Lower Caves | Destroyed 0H-RZE(f) 12080 | -7/Lower Caves | Allies destroyed V4-PTQ(f) 12083 | -7/Lower Caves | Allies destroyed 3R-ONH(f) 12117 | -7/Lower Caves | Discovered new exit (range 6) 12122 | -7/Lower Caves | Identified exit to Zion 12196 | -7/Lower Caves | Entered Zion 12196 | -7/Zion | Accompanied by 5 allies 12246 | -7/Zion | Received a visual enhancement algorithm 12402 | -7/Zion | Discovered new exit (range 15) 12421 | -7/Zion | Identified exit to Proximity Caves 27463 | -7/Zion | RIF detected upon attempting to enter Zion 27463 | -7/Zion | Attacked by Zionites 27593 | -7/Zion | Allies destroyed Imprinter 27594 | -7/Zion | Extracted access codes from Imprinter's data core 27657 | -7/Zion | Spotted 3R-ML2(B) 27676 | -7/Zion | Destroyed 3R-ML2(B) 27728 | -7/Zion | Spotted MO-9JU(B) 27781 | -7/Zion | Rewired MO-9JU(B) 27801 | -7/Zion | Destroyed MO-9JU(B) 28345 | -7/Zion | Learned Factory garrison access intel 28645 | -7/Zion | Opened final containment barrier to the Deep Caves 28890 | -7/Zion | Found Prototype Processor 28895 | -7/Zion | Found Prototype Processor 28907 | -7/Zion | Found Prototype Processor 28995 | -7/Zion | Core integrity fell below 50% 29030 | -7/Zion | Discovered new exit (range 5) 29034 | -7/Zion | Saw the warning signs outside the Deep Caves entrance 29038 | -7/Zion | Entered Deep Caves 29407 | -7/Deep Caves | Z-Facility disabled 29660 | -7/Deep Caves | Discovered new exit (range 7) 30259 | -7/Deep Caves | Spotted as-77882 30309 | -7/Deep Caves | Found XL Autogun Array 30362 | -7/Deep Caves | Exposed GOLEM chamber 30412 | -7/Deep Caves | Found GOLEM Unit 30446 | -7/Deep Caves | Triggered Deep Caves wall 30479 | -7/Deep Caves | Spotted AS-71585 30522 | -7/Deep Caves | Destroyed 37 combat bots 30523 | -7/Deep Caves | Spotted AS-10853 30538 | -7/Deep Caves | Destroyed AS-71585 30561 | -7/Deep Caves | Destroyed AS-10853 30851 | -7/Deep Caves | Entered Proximity Caves 30853 | -6/Proximity Caves | Learned Factory stockpile data 31030 | -6/Proximity Caves | Build established: Hauler-Golem 31337 | -6/Proximity Caves | Discovered exit to Factory (range 11) 31352 | -6/Proximity Caves | Entered Factory 31352 | -6/Factory | Evolved 2 slots: Utility x2 31353 | -6/Factory | Identified exit to Lower Caves 31355 | -6/Factory | Loaded intel: 4 garrison access locations 32106 | -6/Factory | Identified Exp. Targeting Computer 32106 | -6/Factory | Identified Exp. Terrain Scan Processor 32574 | -6/Factory | Garrison activated, responded to threat 32687 | -6/Factory | Build established: Bothacker-Golem 32783 | -6/Factory | Discovered new exit (range 14) 32832 | -6/Factory | Identified exit to Factory 32948 | -6/Factory | Identified Exp. Signal Interpreter 33085 | -6/Factory | Sucked down chute 33085 | -6/Factory | Entered Waste 33145 | -6/Waste | Spotted C-40 Crusher 33155 | -6/Waste | Spotted C-40 Crusher 33180 | -6/Waste | Destroyed C-40 Crusher 33183 | -6/Waste | Spotted C-40 Crusher 33225 | -6/Waste | Spotted C-40 Crusher 33279 | -6/Waste | Destroyed C-40 Crusher 33283 | -6/Waste | Spotted C-40 Crusher 33287 | -6/Waste | Destroyed C-40 Crusher 33316 | -6/Waste | Found Damper Plating 33338 | -6/Waste | Destroyed C-40 Crusher 33354 | -6/Waste | Destroyed C-40 Crusher 33380 | -6/Waste | Destroyed C-40 Crusher 33387 | -6/Waste | Found Damper Plating 33622 | -6/Waste | Found Damper Plating 33717 | -6/Waste | Warlord forces began an assault 33842 | -6/Waste | Discovered new exit (range 15) 33927 | -6/Waste | Build established: Bothacker-Mutant 33987 | -6/Waste | Identified exit to Factory 33997 | -6/Waste | Entered Factory 33997 | -6/Factory | Accompanied by 17 allies 34028 | -6/Factory | Destroyed B-75 Beast 34494 | -6/Factory | Fabricated P-60 Hacker? 34530 | -6/Factory | P-60 Hacker assimilated allied D6-V9X(g) 35023 | -6/Factory | Discovered exit to Factory (range 10) 35234 | -6/Factory | Discovered exit to Lower Caves (range 4) 35718 | -6/Factory | Identified exit to Garrison 35718 | -6/Factory | Entered Garrison 35718 | -6/Garrison | Accompanied by 1 ally 35775 | -6/Garrison | Garrison Relay disabled 35784 | -6/Garrison | Triggered checkpoint 35906 | -6/Garrison | Triggered checkpoint 35910 | -6/Garrison | Triggered checkpoint 35951 | -6/Garrison | Destroyed 9 combat bots 35964 | -6/Garrison | Triggered checkpoint 36024 | -6/Garrison | Discovered new exit (range 8) 36035 | -6/Garrison | Identified exit to Factory 36096 | -6/Garrison | Triggered checkpoint 36128 | -6/Garrison | Garrison Relay disabled 36340 | -6/Garrison | Discovered exit to Factory (range 8) 36361 | -6/Garrison | Expanded RIF knowledge: Threat Obfuscation 36420 | -6/Garrison | Triggered checkpoint 36510 | -6/Garrison | Garrison Relay disabled 36679 | -6/Garrison | Discovered exit to Factory (range 13) 36754 | -6/Garrison | Triggered checkpoint 36804 | -6/Garrison | Garrison Relay disabled 36921 | -6/Garrison | Entered Factory 36921 | -6/Factory | Accompanied by 2 allies 37049 | -6/Factory | Discovered exit to Factory (range 3) 37172 | -6/Factory | Identified exit to Garrison 37182 | -6/Factory | Entered Garrison 37182 | -6/Garrison | Accompanied by 2 allies 37190 | -6/Garrison | Triggered checkpoint 37219 | -6/Garrison | Garrison Relay disabled 37616 | -6/Garrison | Triggered checkpoint 37634 | -6/Garrison | Triggered checkpoint 37666 | -6/Garrison | Triggered checkpoint 37666 | -6/Garrison | Triggered checkpoint 37997 | -6/Garrison | Discovered exit to Factory (range 12) 38032 | -6/Garrison | Triggered checkpoint 38054 | -6/Garrison | Garrison Relay disabled 38166 | -6/Garrison | Triggered checkpoint 38177 | -6/Garrison | Garrison Relay disabled 38252 | -6/Garrison | Discovered exit to Factory (range 12) 38273 | -6/Garrison | Expanded RIF knowledge: Alert ID Control 38374 | -6/Garrison | Triggered checkpoint 38414 | -6/Garrison | Garrison Relay disabled 38434 | -6/Garrison | Triggered checkpoint 38500 | -6/Garrison | Discovered exit to Factory (range 12) 38573 | -6/Garrison | Build established: Botlord-Mutant 38617 | -6/Garrison | Entered Factory 38617 | -5/Factory | Accompanied by 5 allies 38617 | -5/Factory | Evolved 2 slots: Utility x2 38783 | -5/Factory | Identified exit to Upper Caves 38783 | -5/Factory | Identified exit to Extension 38802 | -5/Factory | Spotted B-75 Beast 38803 | -5/Factory | Assimilated Beast 6a with formatsys_high 38859 | -5/Factory | Garrison activated, responded to threat 39176 | -5/Factory | Discovered new exit (range 7) 39247 | -5/Factory | Sucked down chute 39247 | -5/Factory | Entered Waste 39257 | -5/Waste | Spotted C-40 Crusher 39290 | -5/Waste | Spotted C-40 Crusher 39308 | -5/Waste | Spotted C-40 Crusher 39320 | -5/Waste | Spotted C-40 Crusher 39327 | -5/Waste | Allies destroyed C-40 Crusher 39345 | -5/Waste | 4 allies followed down the chute 39351 | -5/Waste | Spotted C-40 Crusher 39355 | -5/Waste | Spotted C-40 Crusher 39404 | -5/Waste | Destroyed C-40 Crusher 39436 | -5/Waste | Destroyed C-40 Crusher 39456 | -5/Waste | Allies destroyed C-40 Crusher 39472 | -5/Waste | Found Damper Plating 39538 | -5/Waste | Discovered new exit (range 13) 39618 | -5/Waste | Warlord forces began an assault 39619 | -5/Waste | Found Damper Plating 39898 | -5/Waste | Entered Factory 39898 | -5/Factory | Accompanied by 22 allies 40068 | -5/Factory | Discovered exit to Extension (range 11) 40114 | -5/Factory | Entered Extension 40114 | -5/Extension | Accompanied by 18 allies 40243 | -5/Extension | Spotted B-75 Beast 40247 | -5/Extension | Allies destroyed B-75 Beast 40264 | -5/Extension | Allies destroyed B-75 Beast 40398 | -5/Extension | Rescued A7 40612 | -5/Extension | Rescued a captive Derelict 40624 | -5/Extension | Rescued a captive Derelict 41014 | -5/Extension | First assault squad dispatched 41137 | -5/Extension | Build established: Commander-Mutant 41153 | -5/Extension | Discovered new exit (range 10) 41154 | -5/Extension | Discovered new exit (range 6) 41228 | -5/Extension | Entered Cetus 41228 | -5/Cetus | Accompanied by 18 allies (A7) 41233 | -5/Cetus | Acquired a Cetus Manufacturing Module code from A7 41246 | -5/Cetus | Spotted Cetus Guard 41246 | -5/Cetus | Spotted Cetus Guard 41249 | -5/Cetus | Spotted Cetus Guard 41250 | -5/Cetus | Spotted Cetus Guard 41256 | -5/Cetus | Allies destroyed Cetus Guard 41262 | -5/Cetus | Allies destroyed Cetus Guard 41265 | -5/Cetus | Allies destroyed Cetus Guard 41268 | -5/Cetus | Allies destroyed Cetus Guard 41328 | -5/Cetus | Started Cetus Manufacturing Module 41341 | -5/Cetus | Escorted A7 to Cetus Mainframe 41353 | -5/Cetus | Manufactured an Enhanced Grunt 41378 | -5/Cetus | Manufactured an Enhanced Grunt 41403 | -5/Cetus | Manufactured an Enhanced Grunt 41413 | -5/Cetus | Discovered new exit (range 15) 41428 | -5/Cetus | Manufactured an Enhanced Grunt 41438 | -5/Cetus | Spotted Cetus Guard 41438 | -5/Cetus | Spotted Cetus Guard 41444 | -5/Cetus | Spotted Cetus Guard 41445 | -5/Cetus | Allies destroyed Cetus Guard 41452 | -5/Cetus | Spotted Cetus Guard 41453 | -5/Cetus | Manufactured an Enhanced Grunt 41456 | -5/Cetus | Allies destroyed Cetus Guard 41463 | -5/Cetus | Allies destroyed Cetus Guard 41472 | -5/Cetus | Discovered new exit (range 15) 41478 | -5/Cetus | Met Revision 17 41561 | -5/Cetus | Entered Archives 41561 | -5/Archives | Accompanied by 5 allies (A7) 41566 | -5/Archives | Received a hacking code to weaken MAIN.C 41625 | -5/Archives | Discovered new exit (range 16) 41802 | -5/Archives | Build established: Botlord-Mutant 42378 | -5/Archives | Entered Hub_04(d) 42378 | -5/Hub_04(d) | Accompanied by 4 allies 42390 | -5/Hub_04(d) | Discovered new exit (range 15) 42555 | -5/Hub_04(d) | Identified exit to Garrison 42570 | -5/Hub_04(d) | Discovered new exit (range 15) 42636 | -5/Hub_04(d) | System corruption reached 10% 42697 | -5/Hub_04(d) | Build established: Bothacker-Mutant 42788 | -5/Hub_04(d) | Garrison activated, responded to threat 42849 | -5/Hub_04(d) | Discovered new exit (range 9) 42857 | -5/Hub_04(d) | Garrison activated, responded to threat 43156 | -5/Hub_04(d) | Discovered new exit (range 11) 43235 | -5/Hub_04(d) | Network Hub disabled 43241 | -5/Hub_04(d) | Disrupted transfer network 43263 | -5/Hub_04(d) | Garrison activated, responded to threat 43830 | -5/Hub_04(d) | Destroyed 7 combat bots 43863 | -5/Hub_04(d) | Found Exp. Targeting Computer 43922 | -5/Hub_04(d) | Spotted Lightning 43922 | -5/Hub_04(d) | Spotted Lightning 43923 | -5/Hub_04(d) | Spotted Lightning 43933 | -5/Hub_04(d) | Network Hub disabled 43938 | -5/Hub_04(d) | Destroyed Lightning 43947 | -5/Hub_04(d) | Destroyed Lightning 43949 | -5/Hub_04(d) | Destroyed Lightning 43957 | -5/Hub_04(d) | Found Prototype Device 43957 | -5/Hub_04(d) | Identified EM Dispersion Field 43966 | -5/Hub_04(d) | Found Prototype Device 43966 | -5/Hub_04(d) | Identified Exp. Phase Shifter 43981 | -5/Hub_04(d) | Found Prototype Energy Cannon 43990 | -5/Hub_04(d) | Identified EMDS 44008 | -5/Hub_04(d) | Found EMDS 44063 | -5/Hub_04(d) | Spotted Lightning 44084 | -5/Hub_04(d) | Destroyed Lightning 44132 | -5/Hub_04(d) | Entered Garrison 44170 | -5/Garrison | Triggered checkpoint 44205 | -5/Garrison | Garrison Relay disabled 44275 | -5/Garrison | Spotted B-75 Beast 44278 | -5/Garrison | Assimilated Beast 6b with formatsys_high 44283 | -5/Garrison | Triggered checkpoint 44285 | -5/Garrison | Destroyed Beast 6b 44380 | -5/Garrison | Triggered checkpoint 44456 | -5/Garrison | Discovered new exit (range 15) 44527 | -5/Garrison | Garrison Relay disabled 44624 | -5/Garrison | Triggered checkpoint 44762 | -5/Garrison | Triggered checkpoint 44776 | -5/Garrison | Discovered new exit (range 14) 44866 | -5/Garrison | Build established: Botlord-Mutant 44902 | -5/Garrison | Triggered checkpoint 44922 | -5/Garrison | Garrison Relay disabled 45094 | -5/Garrison | Discovered new exit (range 15) 45132 | -5/Garrison | Expanded RIF knowledge: Threat Obfuscation 45184 | -5/Garrison | Triggered checkpoint 45220 | -5/Garrison | Garrison Relay disabled 45482 | -5/Garrison | Entered Factory 45482 | -4/Factory | Accompanied by 1 ally 45482 | -4/Factory | Evolved 2 slots: Utility x2 45685 | -4/Factory | Spotted B-86 Titan 46193 | -4/Factory | Destroyed 9 combat bots 46201 | -4/Factory | Lost 4 parts (2u2w) 46248 | -4/Factory | Found Quantum Capacitor 46349 | -4/Factory | Crushed by falling debris 46380 | -4/Factory | Lost 4 parts (1p2u1w) 46482 | -4/Factory | First assault squad dispatched 46505 | -4/Factory | Fabricated Powered Armor (x2) 46677 | -4/Factory | Found Quantum Capacitor 46680 | -4/Factory | Found Quantum Capacitor 46755 | -4/Factory | Discovered new exit (range 14) 46761 | -4/Factory | Sucked down chute 46761 | -4/Factory | Entered Waste 46853 | -4/Waste | Found Unknown Device 46853 | -4/Waste | Identified Adv. Force Booster 46867 | -4/Waste | Spotted C-40 Crusher 46893 | -4/Waste | Spotted C-40 Crusher 46911 | -4/Waste | Found Broken Adv. Powered Armor 46938 | -4/Waste | Spotted C-40 Crusher 46947 | -4/Waste | Spotted C-40 Crusher 46966 | -4/Waste | Spotted C-40 Crusher 47011 | -4/Waste | Discovered new exit (range 10) 47124 | -4/Waste | Warlord forces began an assault 47135 | -4/Waste | Spotted C-40 Crusher 47137 | -4/Waste | Allies destroyed C-40 Crusher 47248 | -4/Waste | Allies destroyed C-40 Crusher 47289 | -4/Waste | Allies destroyed C-40 Crusher 47310 | -4/Waste | Allies destroyed C-40 Crusher 47332 | -4/Waste | Found Damper Plating 47596 | -4/Waste | Entered Factory 47596 | -4/Factory | Accompanied by 12 allies 47652 | -4/Factory | Spotted B-86 Titan 47661 | -4/Factory | Assimilated Titan 7a with formatsys_high 47675 | -4/Factory | Fabricated P-60 Hacker? 47789 | -4/Factory | Identified exit to Garrison 47833 | -4/Factory | Entered Garrison 47833 | -4/Garrison | Accompanied by 12 allies 47925 | -4/Garrison | Garrison Relay disabled 47928 | -4/Garrison | Triggered checkpoint 48036 | -4/Garrison | Triggered checkpoint 48196 | -4/Garrison | Triggered checkpoint 48196 | -4/Garrison | Spotted B-86 Titan 48206 | -4/Garrison | Assimilated Titan 7b with formatsys_high 48357 | -4/Garrison | Discovered new exit (range 8) 48390 | -4/Garrison | Expanded RIF knowledge: Hotswap 48500 | -4/Garrison | Triggered checkpoint 48529 | -4/Garrison | Garrison Relay disabled 48784 | -4/Garrison | Triggered checkpoint 48792 | -4/Garrison | Garrison Relay disabled 48920 | -4/Garrison | Discovered new exit (range 14) 49038 | -4/Garrison | Garrison Relay disabled 49594 | -4/Garrison | Entered Research 49594 | -3/Research | Accompanied by 10 allies 49594 | -3/Research | Evolved 2 slots: Utility x2 49627 | -3/Research | Discovered new exit (range 10) 49794 | -3/Research | Revision forces began assault on 0b10 49906 | -3/Research | Met up with Revision 17++ 49933 | -3/Research | Discovered new exit (range 4) 50294 | -3/Research | Research terminal network offline 50544 | -3/Research | Spotted Striker 50556 | -3/Research | Spotted Striker 50556 | -3/Research | Allies destroyed Striker 50696 | -3/Research | Identified exit to Testing 50700 | -3/Research | Entered Testing 50806 | -3/Testing | Found Prototype Energy Cannon 50806 | -3/Testing | Identified Imp. Potential Cannon 50823 | -3/Testing | Found Imp. Potential Cannon 50960 | -3/Testing | Lost 3 parts (2u1w) 51044 | -3/Testing | Spotted Striker 51050 | -3/Testing | Destroyed Striker 51055 | -3/Testing | Spotted Alpha 7 51061 | -3/Testing | Destroyed Alpha 7 51071 | -3/Testing | Spotted Striker 51167 | -3/Testing | Found Prototype Device 51167 | -3/Testing | Identified AEGIS Remote Shield 51448 | -3/Testing | Fabricated M-13 Machinist? 51547 | -3/Testing | Found Prototype Processor 51610 | -3/Testing | Found Fusion Bomb Launcher 51686 | -3/Testing | Discovered new exit (range 9) 52104 | -3/Testing | Found Prototype Energy Cannon 52104 | -3/Testing | Identified Disintegrator 52331 | -3/Testing | Fabricated M-13 Machinist (x1) 52392 | -3/Testing | Identified Spectral Analyzer 52612 | -3/Testing | Spotted PL-ZDT1C57COD 52627 | -3/Testing | Destroyed PL-ZDT1C57COD 53147 | -3/Testing | Entered Research 53147 | -2/Research | Evolved 2 slots: Power x1, Weapon x1 53177 | -2/Research | Identified exit to Quarantine 53482 | -2/Research | Found Prototype Launcher 53482 | -2/Research | Identified Point Singularity Launcher 53489 | -2/Research | Found Point Singularity Launcher 53492 | -2/Research | Found Point Singularity Launcher 53731 | -2/Research | Destroyed 7 combat bots 53964 | -2/Research | Build established: Bothacker-Mutant 54149 | -2/Research | Entered Quarantine 54151 | -2/Quarantine | Spotted Alpha 7 54518 | -2/Quarantine | Found Alien Artifact 54545 | -2/Quarantine | Discovered new exit (range 15) 54614 | -2/Quarantine | Destroyed 7 combat bots 54661 | -2/Quarantine | System corruption reached 10% 54730 | -2/Quarantine | Found Alien Artifact 54738 | -2/Quarantine | Found Alien Artifact 55004 | -2/Quarantine | Repaired Broken Adv. Powered Armor 55072 | -2/Quarantine | Identified Core Reset Matrix 55161 | -2/Quarantine | Identified exit to Garrison 55161 | -2/Quarantine | Entered Garrison 55210 | -2/Garrison | Triggered checkpoint 55247 | -2/Garrison | Garrison Relay disabled 55346 | -2/Garrison | Triggered checkpoint 55354 | -2/Garrison | Spotted B-90 Cyclops 55366 | -2/Garrison | Triggered checkpoint 55389 | -2/Garrison | Destroyed B-90 Cyclops 55438 | -2/Garrison | Triggered checkpoint 55601 | -2/Garrison | Discovered new exit (range 9) 55626 | -2/Garrison | Expanded RIF knowledge: Zone Cloak 55702 | -2/Garrison | Triggered checkpoint 55726 | -2/Garrison | Garrison Relay disabled 55892 | -2/Garrison | Discovered new exit (range 12) 55960 | -2/Garrison | Triggered checkpoint 55989 | -2/Garrison | Garrison Relay disabled 56008 | -2/Garrison | Triggered checkpoint 56036 | -2/Garrison | Build established: Botlord-Mutant 56175 | -2/Garrison | Triggered checkpoint 56286 | -2/Garrison | Garrison Relay disabled 56325 | -2/Garrison | Discovered new exit (range 8) 56354 | -2/Garrison | Entered Access 56354 | -1/Access | Accompanied by 3 allies 56354 | -1/Access | Evolved 2 slots: Power x1, Weapon x1 56418 | -1/Access | Fabricated Powered Armor (x2) 56754 | -1/Access | Local fabrication network quarantined 56824 | -1/Access | Lost 3 parts (1p2w) 56955 | -1/Access | Central database locked down 56955 | -1/Access | Central database locked down 56955 | -1/Access | Discovered new exit (range 7) 56963 | -1/Access | Entered Command 57155 | -1/Command | Found Antimissile System 57282 | -1/Command | Spotted Combat Programmer 57313 | -1/Command | Spotted M Guard 57313 | -1/Command | Spotted Combat Programmer 57316 | -1/Command | Spotted M Guard 57326 | -1/Command | System corruption reached 10% 57345 | -1/Command | Combat Programmer assimilated allied Warden 10b 57352 | -1/Command | Destroyed Combat Programmer 57361 | -1/Command | Destroyed Combat Programmer 57361 | -1/Command | All MAIN.C guards destroyed 57367 | -1/Command | Crushed by falling debris 57367 | -1/Command | System corruption reached 30% 57398 | -1/Command | Lost 5 parts (2p2u1w) 57460 | -1/Command | Met MAIN.C 57460 | -1/Command | Hacked MAIN.C using A7's code 57463 | -1/Command | 0b10 Conduit disabled 57516 | -1/Command | Destroyed MAIN.C Shell 57519 | -1/Command | MAIN.C activated Command garrisons 57524 | -1/Command | Surrendered to MAIN.C 57524 | -1/Command | Loaded intel: 66 machine locations 57524 | -1/Command | Loaded intel: 107 trap records 57524 | -1/Command | Identified exit to Surface 57524 | -1/Command | Discovered exit to Surface (range 70) 57524 | -1/Command | Discovered exit to Surface (range 57) 57639 | -1/Command | Found Prototype Ballistic Cannon 57639 | -1/Command | Identified Perforator 57655 | -1/Command | Found Prototype Processor 57655 | -1/Command | Identified Exp. Armor Integrity Analyzer 57659 | -1/Command | Found Centrium Heavy Armor Plating 57661 | -1/Command | Found Prototype Device 57661 | -1/Command | Identified Adv. Particle Accelerator 57666 | -1/Command | Found Spectral Analyzer 57676 | -1/Command | Found Prototype Reactor 57676 | -1/Command | Identified Vortex Chain Reactor 57679 | -1/Command | Found Zero-point Reactor 57720 | -1/Command | MAIN.C activated Command garrisons 57757 | -1/Command | Unknown forces attacked Command 57757 | -1/Command | Spotted EQ-000 57757 | -1/Command | Spotted EQ-001 57774 | -1/Command | Destroyed EQ-000 57787 | -1/Command | Destroyed EQ-001 57815 | -1/Command | Spotted Striker 57815 | -1/Command | Spotted Striker 57815 | -1/Command | Spotted EQ-005 57834 | -1/Command | Found Exp. Core Analyzer 57842 | -1/Command | Spotted EQ-033 57842 | -1/Command | Spotted EQ-018 57855 | -1/Command | Spotted EQ-019 57857 | -1/Command | Destroyed EQ-018 57869 | -1/Command | Destroyed EQ-019 57869 | -1/Command | Spotted EQ-023 57878 | -1/Command | Destroyed EQ-023 57883 | -1/Command | Destroyed EQ-005 57889 | -1/Command | Destroyed EQ-008 57903 | -1/Command | Destroyed B-99 Colossus 57908 | -1/Command | Spotted EQ-037 57917 | -1/Command | Destroyed EQ-037 57938 | -1/Command | Destroyed 7 combat bots 57942 | -1/Command | Spotted EQ-024 57949 | -1/Command | Destroyed EQ-024 57958 | -1/Command | Destroyed EQ-048 57963 | -1/Command | Destroyed EQ-038 57980 | -1/Command | Spotted EQ-044 57991 | -1/Command | Destroyed EQ-044 58023 | -1/Command | Spotted EQ-016 58028 | -1/Command | Spotted EQ-030 58030 | -1/Command | Destroyed EQ-016 58042 | -1/Command | Destroyed EQ-030 58044 | -1/Command | Spotted EQ-041 58048 | -1/Command | Spotted EQ-052 58050 | -1/Command | Spotted EQ-042 58053 | -1/Command | Destroyed EQ-041 58069 | -1/Command | Spotted EQ-063 58069 | -1/Command | Destroyed EQ-052 58070 | -1/Command | Destroyed EQ-042 58072 | -1/Command | Destroyed EQ-063 58087 | -1/Command | Spotted EQ-053 58096 | -1/Command | Spotted EQ-081 58101 | -1/Command | Destroyed EQ-053 58104 | -1/Command | Spotted EQ-074 58105 | -1/Command | Spotted EQ-072 58105 | -1/Command | Destroyed EQ-081 58110 | -1/Command | Spotted EQ-078 58118 | -1/Command | Destroyed EQ-078 58118 | -1/Command | Spotted EQ-068 58126 | -1/Command | Spotted EQ-040 58129 | -1/Command | Spotted EQ-046 58134 | -1/Command | Spotted EQ-082 58149 | -1/Command | Destroyed EQ-046 58151 | -1/Command | Spotted EQ-039 58159 | -1/Command | Spotted EQ-013 58164 | -1/Command | Core integrity fell below 50% 58170 | -1/Command | Core integrity fell below 20% 58170 | -1/Command | Spotted EQ-045 58183 | *** | Escaped! Last Messages --------------- 58157_ Penetrated by Slug. 58157_ Dropped Vortex Chain Reactor. 58158_ Exp. Coolant Injector destroyed. 58159_ Penetrated by Slug. 58162_ Slug penetrates Wall. 58165_ Slug penetrates EQ-068. 58166_ Penetrated by Slug. 58170_ Slug penetrates Wall. 58171_ Penetrated by Slug. 58171_ Slug penetrates Operations Mainframe. 58172_ Penetrated by Slug. 58172_ Acquired 82 matter. 58173_ System corrupted: Energy discharge (-21). 58174_ Acquired Prototype Leg. 58174_ Identified Exp. Biometal Leg. 58176_ Slug penetrates Operations Mainframe. 58177_ Slug penetrates Earth. 58178_ Penetrated by Slug. EQ-102 warps into view. 58182_ Penetrated by Slug. Map ----- +----------------------------------------------------+ | ????????# #?????????????????????????? | | ????????# #?????????????????????????? | | ????????# ###################???????? | | ????????# + + #???????? | | ????????# ########### #???????? | | ????????########+#########???????# ""#???????? | | ?????????????# ###?????# ""#???????? | | ?????????????# ^ ^ #?????# ""#???????? | | ?????????????# #?????# T#???????? | | ?????????????#^ !!! ######### ""#???????? | | ?????????????#"" !^! ?? ## # ""#?###???? | | ?????????????#"" ! ?? # + ""# ????? | | ?????????????#"" ^ ?? # ?###### | | ?????????????#T ^ ### # #?## | | ?????????????#"" # # # ### ###### "" | | ?????????????#"" !! = " | | ?????????????#"" !! * " | | ?????????????# #### ## | | ?????????????# * #### ## | | ?????????????# % #][] =# | | #####???#######/####### % #!]] =# | | #???# ## #!! !=# | | #???# ## n# % #!| = # | | " #???# "" ##n ### ######### | | "" #???# """" ## ## "#???????? | | "" #???# """" ## @ # #???????? | | " #???# "" ## # #???????? | | ##### ####### #???????? | | / + #???### #???????? | | ## ## #???# # #???????? | | +##### ## #???## ! #?####### | | #???# ## #???# # [*] #?#?????? | | #???# ## #???# "!]! #?#?##### | | ##### ###+############### """ !!! #?#?#"""" | | #?# #????????# # """"!*% #?#?#"" | | +#######?# #????????# # ! !!! #?#?#"""" | | #####+##???????# # [! = ! #?#?#"""" | | # #?????### # ]=*!! #?#?#" | | # #?????# + ########%*# #?#?#" | | # #?????# # #??????#!! ! ###?#"" | | # #?????# # #??????#" = "##?# | | """ # #?????# # #?????? "##?# | | """ # #?????# # #????###" ]!= #?# | | #######/########### #######???# ] = ]! #?# | | #???# "##?# | | ######################### #?### %% [ # #?# | | ????????????????????????# #?# " !!= " #?# ! | | ????????????????????????#^#?### =! !==####=[ | | ????????????????????????# #???# !%* ! !! ]! | | ######??????????????????# #???# !* !!=!!!!!! | +----------------------------------------------------+ Best States ------------- Heat Dissipation 121 Coolant Potential 220 Energy Generation 103 Energy Capacity 1640 Matter Stores 300 Matter Capacity 300 Sight Range 24 Robot Scan Range 22 Terrain Scan Density 10 Jamming Range 16 Power Amplification 30 Armor Coverage 2400 Resistance: EM 90 Point Defense Rating 240 Evasion (%) 50 Targeting Accuracy 12 Core Analysis 15 Armor Integrity Analysis 90 Recoil Reduction 3 Matter Filtering 30 Particle Charging 50 Offensive Hacking 14 Relay Coupler Types 110 Relay Coupler Value 5 Item Schematics ----------------- Powered Armor | -7/Factory | Hacked Robot Schematics ------------------ M-13 Machinist | -10/Materials | Hacked P-60 Hacker | -7/Factory | Hacked Fabricated ------------ Hardcell Cannon | x2 | -7/Factory | Preloaded P-60 Hacker | x2 | -6/Factory Powered Armor | x2 | -4/Factory P-60 Hacker | x2 | -4/Factory M-13 Machinist | x1 | -3/Testing M-13 Machinist | x1 | -3/Testing Powered Armor | x2 | -1/Access Alien Tech Used ----------------- None Achievements -------------- None Challenges ------------ None Game ------ Seed ScanLinearDoomcannon Manual? 0 Play Time 10:56:37 Cumulative 1351.0 hours Start 2021.04.15 @ 21:09:21 End 2021.04.19 @ 23:11:46 Sessions 9 Manual Loads 0 Difficulty Rogue Special Mode Halloween2020/ForbiddenLore Game No. 420 Rogue 420 Adventurer 0 Explorer 0 Win Type 0 Total 264 Types 216/7/15/4/3/2/15/1/1 Lore% 99 Gallery% 99 Achievement% 95 Wizard Run 0 Options --------- ASCII 0 Keyboard 0 Movement Numpad Keybinds 0 Fullscreen 0 Font 16/Smallcaps Map View 76x50 Tactical HUD 1 Map Filters NONE Filters NONE Steam 1 RUN: 571ec456-c994-41d8-bcf0-cb53f2cc72a2